Workbook

Sheet Lamina
E1: Lâmina Da Carteira Hipotética - Financeiro
C3: Dta. Ult.. Cot. Carteira: | E3: =IF(E4="",_xll.ECONOMATICA('Criar Carteira'!$B$2,"date of last quote"),E4) -> 2022-06-17 | G3: ← Não Modificar
C4: Dta. Pref. Carteira: | G4: ← Para alterar a data da Célula E3, basta digitar na Célula E4
C5: Dta. Iníc. Carteira: | E5: ='Criar Carteira'!$B$4 -> 2017-12-29 | G5: ← Não Modificar
C6: Nome Carteira | E6: Economatica | G6: ← Escolha o Nome Da Carteira
C8: PERFIL DE RETORNOS | I8: PERFIL DE RISCO DA CARTEIRA
B9: Na Célula (E9) Escolha o Índice → | D9: =_xll.ECONOMATICA('Criar Carteira'!$B$2,"NAME") -> Economatica | E9: IMOB | F9: =_xlfn.CONCAT("Δ"," ",MID(E9,1,4)," ","p.p") -> Δ IMOB p.p | G9: IBOV | H9: =_xlfn.CONCAT("Δ"," ",G9," ","p.p") -> Δ IBOV p.p | I9: Estatísticas Desde o Início da Carteira
C10: 1D | D10: =_xll.ECONOMATICA('Criar Carteira'!$B$2,"RETURN",$C10,$E$3,,,,"DECIMAL") -> -0.05595560152 | E10: =_xll.ECONOMATICA($E$9,"RETURN",$C10,$E$3,,,,"DECIMAL") -> -0.007014906676 | F10: =IFERROR((D10-E10)*100,"") -> -4.894069484 | G10: =_xll.ECONOMATICA($G$9,"RETURN",$C10,$E$3,,,,"DECIMAL") -> -0.02900469054 | H10: =IFERROR((D10-G10)*100,"") -> -2.695091097 | I10: 12m | J10: Volatilidade | L10: =_xll.ECONOMATICA('Criar Carteira'!$B$2,"volatility",I10,$E$3,,,,"decimal") -> 0.3120224019
C11: 1M | D11: =_xll.ECONOMATICA('Criar Carteira'!$B$2,"RETURN",$C11,$E$3,,,,"DECIMAL") -> -0.1226825281 | E11: =_xll.ECONOMATICA($E$9,"RETURN",$C11,$E$3,,,,"DECIMAL") -> -0.1441257845 | F11: =IFERROR((D11-E11)*100,"") -> 2.144325638 | G11: =_xll.ECONOMATICA($G$9,"RETURN",$C11,$E$3,,,,"DECIMAL") -> -0.08240137153 | H11: =IFERROR((D11-G11)*100,"") -> -4.028115656 | I11: =E5 -> 2017-12-29 | L11: =_xll.ECONOMATICA('Criar Carteira'!$B$2,"volatility",I11,$E$3,,,,"decimal") -> 0.3397126712
C12: 6M | D12: =_xll.ECONOMATICA('Criar Carteira'!$B$2,"RETURN",$C12,$E$3,,,,"DECIMAL") -> -0.1621237631 | E12: =_xll.ECONOMATICA($E$9,"RETURN",$C12,$E$3,,,,"DECIMAL") -> -0.1375258405 | F12: -2.459792261 | G12: =_xll.ECONOMATICA($G$9,"RETURN",$C12,$E$3,,,,"DECIMAL") -> -0.06880206596 | H12: -9.332169715 | I12: =$E$9 -> IMOB | J12: Tracking Error | L12: =_xll.ECONOMATICA('Criar Carteira'!$B$2,"Tracking Error",$I$11,$E$3,,,,"decimal",,,,'Base Opcionais'!$F$2) -> 0.3131611952
C13: 12M | D13: =_xll.ECONOMATICA('Criar Carteira'!$B$2,"RETURN",$C13,$E$3,,,,"DECIMAL") -> -0.3180026118 | E13: =_xll.ECONOMATICA($E$9,"RETURN",$C13,$E$3,,,,"DECIMAL") -> -0.3854383704 | F13: 6.743575857 | G13: =_xll.ECONOMATICA($G$9,"RETURN",$C13,$E$3,,,,"DECIMAL") -> -0.2204661323 | H13: -9.753647955 | I13: IBOV | L13: =_xll.ECONOMATICA('Criar Carteira'!$B$2,"Tracking Error",$I$11,$E$3,,,,"decimal") -> 0.191791919
C14: 24M | D14: =_xll.ECONOMATICA('Criar Carteira'!$B$2,"RETURN",$C14,$E$3,,,,"DECIMAL") -> 0.5167010407 | E14: =_xll.ECONOMATICA($E$9,"RETURN",$C14,$E$3,,,,"DECIMAL") -> -0.3446864796 | F14: 86.13875203 | G14: =_xll.ECONOMATICA($G$9,"RETURN",$C14,$E$3,,,,"DECIMAL") -> 0.04476997726 | H14: 47.19310634 | I14: =$E$9 -> IMOB | J14: Beta | L14: =_xll.ECONOMATICA('Criar Carteira'!$B$2,"beta",$I$11,$E$3,,,,"DECIMAL",,,,'Base Opcionais'!$F$2) -> 0.005224931947
C15: 36M | D15: =_xll.ECONOMATICA('Criar Carteira'!$B$2,"RETURN",$C15,$E$3,,,,"DECIMAL") -> 1.043372186 | E15: =_xll.ECONOMATICA($E$9,"RETURN",$C15,$E$3,,,,"DECIMAL") -> -0.3355336917 | F15: 137.8905877 | G15: =_xll.ECONOMATICA($G$9,"RETURN",$C15,$E$3,,,,"DECIMAL") -> 0.02255292669 | H15: 102.0819259 | I15: IBOV | L15: =_xll.ECONOMATICA('Criar Carteira'!$B$2,"beta",$I$11,$E$3,,,,"DECIMAL") -> 0.008592149462
C16: YTD | D16: =_xll.ECONOMATICA('Criar Carteira'!$B$2,"RETURN",$C16,$E$3,,,,"DECIMAL") -> -0.1496686261 | E16: =_xll.ECONOMATICA($E$9,"RETURN",$C16,$E$3,,,,"DECIMAL") -> -0.1244028387 | F16: -2.52657873 | G16: =_xll.ECONOMATICA($G$9,"RETURN",$C16,$E$3,,,,"DECIMAL") -> -0.04767586024 | H16: -10.19927658 | I16: =$E$9 -> IMOB | J16: Informatio Ratio | L16: =_xll.ECONOMATICA('Criar Carteira'!$B$2,"InfoRatio",$I$11,$E$3,,,,"DECIMAL",,,,'Base Opcionais'!$F$2) -> 0.009701772248
C17: MTD | D17: =_xll.ECONOMATICA('Criar Carteira'!$B$2,"RETURN",$C17,$E$3,,,,"DECIMAL") -> -0.1311321899 | E17: =_xll.ECONOMATICA($E$9,"RETURN",$C17,$E$3,,,,"DECIMAL") -> -0.09532368969 | F17: -3.580850025 | G17: =_xll.ECONOMATICA($G$9,"RETURN",$C17,$E$3,,,,"DECIMAL") -> -0.1035071146 | H17: -2.762507534 | I17: IBOV | L17: =_xll.ECONOMATICA('Criar Carteira'!$B$2,"inforatio",$I$11,$E$3,,,,"DECIMAL") -> 0.01153577654
B18: Desde Início → | C18: =E5 -> 2017-12-29 | D18: =_xll.ECONOMATICA('Criar Carteira'!$B$2,"RETURN",$C18,$E$3,,,,"DECIMAL") -> 1.893891046 | E18: =_xll.ECONOMATICA($E$9,"RETURN",$C18,$E$3,,,,"DECIMAL") -> -0.1665549554 | F18: =IFERROR((D18-E18)*100,"") -> 206.0446002 | G18: =_xll.ECONOMATICA($G$9,"RETURN",$C18,$E$3,,,,"DECIMAL") -> 0.3065735907 | H18: =IFERROR((D18-G18)*100,"") -> 158.7317456 | I18: =$E$9 -> IMOB | J18: Alfa de Jensen | L18: =_xll.ECONOMATICA('Criar Carteira'!$B$2,"Alpha",$I$11,$E$3,,,,"decimal",,,,'Base Opcionais'!$F$2) -> 0.3054354425
B19: Média Anual Desde o Início → | C19: =C18 -> 2017-12-29 | D19: =_xll.ECONOMATICA('Criar Carteira'!$B$2,"RETURN",$C19,$E$3,,,,"DECIMAL",,,,{"std.tec.ppr.per=4";"std.tec.ppr.pertd=false"}) -> 0.2744955481 | E19: =_xll.ECONOMATICA($E$9,"RETURN",$C19,$E$3,,,,"DECIMAL",,,,{"std.tec.ppr.per=4";"std.tec.ppr.pertd=false"}) -> -0.04073343372 | F19: 31.52289819 | G19: =_xll.ECONOMATICA($G$9,"RETURN",$C19,$E$3,,,,"DECIMAL",,,,{"std.tec.ppr.per=4";"std.tec.ppr.pertd=false"}) -> 0.06294016875 | H19: 21.15553794 | I19: IBOV | L19: =_xll.ECONOMATICA('Criar Carteira'!$B$2,"alpha",$I$11,$E$3,,,,"decimal") -> 0.2442978889
C21: GRÁFICO DE RENTABILIDADE | I21: BENCHMARK: | J21: BENCHMARK: | K21: =Historico!J9 -> Ifinanceiro+5%a.a. | M21: ← Não Modificar
L22: IFNC | M22: ← Escolha o Índice do Benchmark
L23: A | M23: ← Escolha um Tipo de Operação "A" (Adicionar um Fator Prefixado) ou "M" (Multiplica o Fator)
L24: 5 | M24: ← Digite o Valor do Fator
C40: Patrimônio, Compras e Vendas
C72: Drawdown
C89: Retorno Diário
C105: Volatilidade
C120: Risco x Retorno | K120: 12M | M120: ← Selecione Um Período

Sheet Criar Carteira
E1: Criação Da Carteira Hipotética Em Financeiro
B2: =_xll.ECOPORTFOLIO("F",$D$8:$F$201,"0d",,Lamina!$E$6) -> Economatica <EcoPortfolio>{"type":"F","tolerance":"0d","rebalance":null,"name":"Economatica","data":[["2017-12-29","VALE3",2736405.12016054],["2018-02-01","WEGE3",2000000.0],["2018-03-01","SANB11",449400.423391945],["2018-04-01","BRSR6",584005.120708887],["2018-05-01","CVCB3",711601.739560784],["2018-05-05","SANB11","SELL ALL"],["2018-06-01","VALE3",-200000.0],["2018-07-01","CVCB3","SELL ALL"],["2018-08-01","PRIO3",584236.22],["2018-09-01","CPFE3",12857.365519577499],["2018-10-01","BIDI4",514736.12],["2018-11-01","CSAN3",21746.581395242098],["2018-12-01","POMO4",28282.0246727596],["2019-01-01","SBSP3",36781.54763974],["2019-02-01","QUAL3",47835.4100326317],["2019-03-01","PETR4",500000.0],["2019-04-01","SANB11","SELL ALL"],["2019-05-01","ITSA4",1177970.08644623],["2019-06-01","CMIG4",231454.97144607303],["2019-07-01","TAEE11",301013.529165687],["2019-08-01","CYRE3",391476.338463064],["2019-09-01","BRKM5",861120.68964325206],["2019-10-01","ODPV3",119911.04018044],["2019-11-01","MOTV3",894185.59763512],["2019-12-01","ITSA4",-250000.0],["2020-01-01","MRVE3",463440.24531704],["2020-02-01","BBSE3",118767.76325908],["2020-03-01","ENBR3",647255.87857121],["2020-05-01","EZTC3","SELL ALL"],["2020-06-01","BIDI11",1000000.0],["2020-07-01","ITUB4",400000.0],["2020-08-01","ITSA4","SELL ALL"],["2020-09-01","VALE3",500000.0],["2020-10-01","USIM5",450000.0],["2020-11-01","JHSF3",80000.0],["2020-12-01","RENT3",700000.0],["2021-01-01","PRIO3",1500000.0],["2021-02-01","LWSA3",400000.0],["2021-04-01","RENT3",-500000.0],["2021-05-01","ITUB4","SELL ALL"],["2021-06-01","VALE3",-700000.0],["2021-07-01","PETR4",-200000.0],["2021-08-01","ITSA4","SELL ALL"],["2021-09-15","TASA3",80000.0],["2021-09-25","EMBR3",700000.0],["2021-11-10","PSSA3",1500000.0],["2021-12-19","RAPT4",500000.0],["2022-02-05","VALE3",1000000.0],["2022-03-15","SLCE3",50000.0],[null,"",null],[null,"",null],[null,"",null],[null,"",null],[null,"",null],[null,"",null],[null,"",null],[null,"",null],[null,"",null],[null,"",null],[null,"",null],[null,"",null],[null,"",null],[null,"",null],[null,"",null],[null,"",null],[null,"",null],[null,"",null],[null,"",null],[null,"",null],[null,"",null],[null,"",null],[null,"",null],[null,"",null],[null,"",null],[null,"",null],[null,"",null],[null,"",null],[null,"",null],[null,"",null],[null,"",null],[null,"",null],[null,"",null],[null,"",null],[null,"",null],[null,"",null],[null,"",null],[null,"",null],[null,"",null],[null,"",null],[null,"",null],[null,"",null],[null,"",null],[null,"",null],[null,"",null],[null,"",null],[null,"",null],[null,"",null],[null,"",null],[null,"",null],[null,"",null],[null,"",null],[null,"",null],[null,"",null],[null,"",null],[null,"",null],[null,"",null],[null,"",null],[null,"",null],[null,"",null],[null,"",null],[null,"",null],[null,"",null],[null,"",null],[null,"",null],[null,"",null],[null,"",null],[null,"",null],[null,"",null],[null,"",null],[null,"",null],[null,"",null],[null,"",null],[null,"",null],[null,"",null],[null,"",null],[null,"",null],[null,"",null],[null,"",null],[null,"",null],[null,"",null],[null,"",null],[null,"",null],[null,"",null],[null,"",null],[null,"",null],[null,"",null],[null,"",null],[null,"",null],[null,"",null],[null,"",null],[null,"",null],[null,"",null],[null,"",null],[null,"",null],[null,"",null],[null,"",null],[null,"",null],[null,"",null],[null,"",null],[null,"",null],[null,"",null],[null,"",null],[null,"",null],[null,"",null],[null,"",null],[null,"",null],[null,"",null],[null,"",null],[null,"",null],[null,"",null],[null,"",null],[null,"",null],[null,"",null],[null,"",null],[null,"",null],[null,"",null],[null,"",null],[null,"",null],[null,"",null],[null,"",null],[null,"",null],[null,"",null],[null,"",null],[null,"",null],[null,"",null],[null,"",null],[null,"",null],[null,"",null],[null,"",null],[null,"",null],[null,"",null],[null,"",null],[null,"",null],[null,"",null],[null,"",null],[null,"",null],[null,"",null],[null,"",null],[null,"",null],[null,"",null],[null,"",null],[null,"",null],[null,"",null],[null,"",null]]} | C2: ← Não Modificar
B3: =_xll.ECONOMATICA($B$2,"date of last quote") -> 2022-06-17 | C3: ← Dta. Últ. Cot. | E3: ** Para zerar a posição em um determinado ativo, usar SELL ALL na coluna de valor **
B4: =D8 -> 2017-12-29 | C4: ← Dta. Inc. Ser. | E4: A carteira só pode ser construida com papeis na mesma moeda (Ex: R$ ou US$)
D6: ↓ Inserir a data de transação na coluna "D", o ticker do ativo na coluna "E" e o valor da transação na coluna "F"
D7: Data | E7: Ticker | F7: Valor
D8: 2017-12-29 | E8: VALE3 | F8: 2736405.12
D9: 2018-02-01 | E9: WEGE3 | F9: 2000000
D10: 2018-03-01 | E10: SANB11 | F10: 449400.4234
D11: 2018-04-01 | E11: BRSR6 | F11: 584005.1207
D12: 2018-05-01 | E12: CVCB3 | F12: 711601.7396
D13: 2018-05-05 | E13: SANB11 | F13: SELL ALL
D14: 2018-06-01 | E14: VALE3 | F14: -200000
D15: 2018-07-01 | E15: CVCB3 | F15: SELL ALL
D16: 2018-08-01 | E16: PRIO3 | F16: 584236.22
D17: 2018-09-01 | E17: CPFE3 | F17: 12857.36552
D18: 2018-10-01 | E18: BIDI4 | F18: 514736.12
D19: 2018-11-01 | E19: CSAN3 | F19: 21746.5814
D20: 2018-12-01 | E20: POMO4 | F20: 28282.02467
D21: 2019-01-01 | E21: SBSP3 | F21: 36781.54764
D22: 2019-02-01 | E22: QUAL3 | F22: 47835.41003
D23: 2019-03-01 | E23: PETR4 | F23: 500000
D24: 2019-04-01 | E24: SANB11 | F24: SELL ALL
D25: 2019-05-01 | E25: ITSA4 | F25: 1177970.086
D26: 2019-06-01 | E26: CMIG4 | F26: 231454.9714
D27: 2019-07-01 | E27: TAEE11 | F27: 301013.5292
D28: 2019-08-01 | E28: CYRE3 | F28: 391476.3385
D29: 2019-09-01 | E29: BRKM5 | F29: 861120.6896
D30: 2019-10-01 | E30: ODPV3 | F30: 119911.0402
D31: 2019-11-01 | E31: MOTV3 | F31: 894185.5976
D32: 2019-12-01 | E32: ITSA4 | F32: -250000
D33: 2020-01-01 | E33: MRVE3 | F33: 463440.2453
D34: 2020-02-01 | E34: BBSE3 | F34: 118767.7633
D35: 2020-03-01 | E35: ENBR3 | F35: 647255.8786
D36: 2020-05-01 | E36: EZTC3 | F36: SELL ALL
D37: 2020-06-01 | E37: BIDI11 | F37: 1000000
D38: 2020-07-01 | E38: ITUB4 | F38: 400000
D39: 2020-08-01 | E39: ITSA4 | F39: SELL ALL
D40: 2020-09-01 | E40: VALE3 | F40: 500000
D41: 2020-10-01 | E41: USIM5 | F41: 450000
D42: 2020-11-01 | E42: JHSF3 | F42: 80000
D43: 2020-12-01 | E43: RENT3 | F43: 700000
D44: 2021-01-01 | E44: PRIO3 | F44: 1500000
D45: 2021-02-01 | E45: LWSA3 | F45: 400000
D46: 2021-04-01 | E46: RENT3 | F46: -500000
D47: 2021-05-01 | E47: ITUB4 | F47: SELL ALL
D48: 2021-06-01 | E48: VALE3 | F48: -700000
D49: 2021-07-01 | E49: PETR4 | F49: -200000
D50: 2021-08-01 | E50: ITSA4 | F50: SELL ALL
D51: 2021-09-15 | E51: TASA3 | F51: 80000
D52: 2021-09-25 | E52: EMBR3 | F52: 700000
D53: 2021-11-10 | E53: PSSA3 | F53: 1500000
D54: 2021-12-19 | E54: RAPT4 | F54: 500000
D55: 2022-02-05 | E55: VALE3 | F55: 1000000
D56: 2022-03-15 | E56: SLCE3 | F56: 50000

Sheet Base Opcionais
F1: Planilha Auxiliar Não Modificar
B2: Formula Código | C2: =INDEX($G$5:$G$26,MATCH(Lamina!$E$9,'Base Opcionais'!$D$5:$D$26,0)) -> 42489 | F2: ="std.tec.stt.bmk=0:"&$C$2&$F$3 -> std.tec.stt.bmk=0:42489,1:2284,2:3543,3:2552,4:8107,5:0,6:0,7:0,8:0,9:0,10:18238,11:8845,12:0,13:0,14:0,15:0,16:0,17:0,18:0,19:0,20:0,21:0,22:0,23:0,24:0,25:0,26:0,27:0,28:0,29:0,30:0,31:0,;std.tec.stt.bmk=32:0,33:0,34:0,35:0,36:0,37:0,38:0,39:0,40:0,41:0,42:0,43:0,44:0,45:0,46:0,47:0,48:0,49:0,50:0,51:0,52:0,53:0,54:0,55:0,56:0,57:0,58:0,59:0,60:0,61:0,62:0,63:0,64:0,65:0,66:0,67:0,68:0,69:0,70:0,71:0,72:0,73:0,74:0,75:0,76:0,77:0,78:0,79:0
F3: ,1:2284,2:3543,3:2552,4:8107,5:0,6:0,7:0,8:0,9:0,10:18238,11:8845,12:0,13:0,14:0,15:0,16:0,17:0,18:0,19:0,20:0,21:0,22:0,23:0,24:0,25:0,26:0,27:0,28:0,29:0,30:0,31:0,;std.tec.stt.bmk=32:0,33:0,34:0,35:0,36:0,37:0,38:0,39:0,40:0,41:0,42:0,43:0,44:0,45:0,46:0,47:0,48:0,49:0,50:0,51:0,52:0,53:0,54:0,55:0,56:0,57:0,58:0,59:0,60:0,61:0,62:0,63:0,64:0,65:0,66:0,67:0,68:0,69:0,70:0,71:0,72:0,73:0,74:0,75:0,76:0,77:0,78:0,79:0
B4: Índice Ações | C4: =_xll.ECONOMATICA($B$5:$B$26,"Name",,,,,,,"false","true") -> Nome | D4: Código | E4: =_xll.ECONOMATICA($D$5:$D$26,"Date of Last Quote",,,,,,,"false","true") -> Data da Últ Cotação | F4: Opcionais - Tracking Error | G4: Código
B5: BDRX<XBSP> | C5: Bdrx | D5: BDRX | E5: 2025-09-15 | F5: {"std.tec.stt.bmk=0:58323,1:2284,2:3543,3:2552,4:8107,5:0,6:0,7:0,8:0,9:0,10:18238,11:8845,12:0,13:0,14:0,15:0,16:0,17:0,18:0,19:0,20:0,21:0,22:0,23:0,24:0,25:0,26:0,27:0,28:0,29:0,30:0,31:0,";"std.tec.stt.bmk=32:0,33:0,34:0,35:0,36:0,37:0,38:0,39:0,40:0,41:0,42:0,43:0,44:0,45:0,46:0,47:0,48:0,49:0,50:0,51:0,52:0,53:0,54:0,55:0,56:0,57:0,58:0,59:0,60:0,61:0,62:0,63:0,64:0,65:0,66:0,67:0,68:0,69:0,70:0,71:0,72:0,73:0,74:0,75:0,76:0,77:0,78:0,79:0"} | G5: 58323
B6: IDIV<XBSP> | C6: I Dividendos | D6: IDIV<XBSP> | E6: 2025-09-15 | F6: {"std.tec.stt.bmk=0:51531,1:2284,2:3543,3:2552,4:8107,5:0,6:0,7:0,8:0,9:0,10:18238,11:8845,12:0,13:0,14:0,15:0,16:0,17:0,18:0,19:0,20:0,21:0,22:0,23:0,24:0,25:0,26:0,27:0,28:0,29:0,30:0,31:0,";"std.tec.stt.bmk=32:0,33:0,34:0,35:0,36:0,37:0,38:0,39:0,40:0,41:0,42:0,43:0,44:0,45:0,46:0,47:0,48:0,49:0,50:0,51:0,52:0,53:0,54:0,55:0,56:0,57:0,58:0,59:0,60:0,61:0,62:0,63:0,64:0,65:0,66:0,67:0,68:0,69:0,70:0,71:0,72:0,73:0,74:0,75:0,76:0,77:0,78:0,79:0"} | G6: 51531
B7: IBRA<XBSP> | C7: Ibrasil | D7: IBRA | E7: 2025-09-15 | F7: {"std.tec.stt.bmk=0:51530,1:2284,2:3543,3:2552,4:8107,5:0,6:0,7:0,8:0,9:0,10:18238,11:8845,12:0,13:0,14:0,15:0,16:0,17:0,18:0,19:0,20:0,21:0,22:0,23:0,24:0,25:0,26:0,27:0,28:0,29:0,30:0,31:0,";"std.tec.stt.bmk=32:0,33:0,34:0,35:0,36:0,37:0,38:0,39:0,40:0,41:0,42:0,43:0,44:0,45:0,46:0,47:0,48:0,49:0,50:0,51:0,52:0,53:0,54:0,55:0,56:0,57:0,58:0,59:0,60:0,61:0,62:0,63:0,64:0,65:0,66:0,67:0,68:0,69:0,70:0,71:0,72:0,73:0,74:0,75:0,76:0,77:0,78:0,79:0"} | G7: 51530
B8: IBXL<XBSP> | C8: Ibrx 50 | D8: IBXL | E8: 2025-09-15 | F8: {"std.tec.stt.bmk=0:6183,1:2284,2:3543,3:2552,4:8107,5:0,6:0,7:0,8:0,9:0,10:18238,11:8845,12:0,13:0,14:0,15:0,16:0,17:0,18:0,19:0,20:0,21:0,22:0,23:0,24:0,25:0,26:0,27:0,28:0,29:0,30:0,31:0,";"std.tec.stt.bmk=32:0,33:0,34:0,35:0,36:0,37:0,38:0,39:0,40:0,41:0,42:0,43:0,44:0,45:0,46:0,47:0,48:0,49:0,50:0,51:0,52:0,53:0,54:0,55:0,56:0,57:0,58:0,59:0,60:0,61:0,62:0,63:0,64:0,65:0,66:0,67:0,68:0,69:0,70:0,71:0,72:0,73:0,74:0,75:0,76:0,77:0,78:0,79:0"} | G8: 6183
B9: IBXX<XBSP> | C9: Ibrx Brasil | D9: IBXX | E9: 2025-09-15 | F9: {"std.tec.stt.bmk=0:6181,1:2284,2:3543,3:2552,4:8107,5:0,6:0,7:0,8:0,9:0,10:18238,11:8845,12:0,13:0,14:0,15:0,16:0,17:0,18:0,19:0,20:0,21:0,22:0,23:0,24:0,25:0,26:0,27:0,28:0,29:0,30:0,31:0,";"std.tec.stt.bmk=32:0,33:0,34:0,35:0,36:0,37:0,38:0,39:0,40:0,41:0,42:0,43:0,44:0,45:0,46:0,47:0,48:0,49:0,50:0,51:0,52:0,53:0,54:0,55:0,56:0,57:0,58:0,59:0,60:0,61:0,62:0,63:0,64:0,65:0,66:0,67:0,68:0,69:0,70:0,71:0,72:0,73:0,74:0,75:0,76:0,77:0,78:0,79:0"} | G9: 6181
B10: ICO2<XBSP> | C10: Ico2 | D10: ICO2 | E10: 2025-09-15 | F10: {"std.tec.stt.bmk=0:50191,1:2284,2:3543,3:2552,4:8107,5:0,6:0,7:0,8:0,9:0,10:18238,11:8845,12:0,13:0,14:0,15:0,16:0,17:0,18:0,19:0,20:0,21:0,22:0,23:0,24:0,25:0,26:0,27:0,28:0,29:0,30:0,31:0,";"std.tec.stt.bmk=32:0,33:0,34:0,35:0,36:0,37:0,38:0,39:0,40:0,41:0,42:0,43:0,44:0,45:0,46:0,47:0,48:0,49:0,50:0,51:0,52:0,53:0,54:0,55:0,56:0,57:0,58:0,59:0,60:0,61:0,62:0,63:0,64:0,65:0,66:0,67:0,68:0,69:0,70:0,71:0,72:0,73:0,74:0,75:0,76:0,77:0,78:0,79:0"} | G10: 50191
B11: ICON<XBSP> | C11: Iconsumo | D11: ICON<XBSP> | E11: 2025-09-15 | F11: {"std.tec.stt.bmk=0:42490,1:2284,2:3543,3:2552,4:8107,5:0,6:0,7:0,8:0,9:0,10:18238,11:8845,12:0,13:0,14:0,15:0,16:0,17:0,18:0,19:0,20:0,21:0,22:0,23:0,24:0,25:0,26:0,27:0,28:0,29:0,30:0,31:0,";"std.tec.stt.bmk=32:0,33:0,34:0,35:0,36:0,37:0,38:0,39:0,40:0,41:0,42:0,43:0,44:0,45:0,46:0,47:0,48:0,49:0,50:0,51:0,52:0,53:0,54:0,55:0,56:0,57:0,58:0,59:0,60:0,61:0,62:0,63:0,64:0,65:0,66:0,67:0,68:0,69:0,70:0,71:0,72:0,73:0,74:0,75:0,76:0,77:0,78:0,79:0"} | G11: 42490
B12: IEEX<XBSP> | C12: Ieeletrica | D12: IEEX | E12: 2025-09-15 | F12: {"std.tec.stt.bmk=0:6270,1:2284,2:3543,3:2552,4:8107,5:0,6:0,7:0,8:0,9:0,10:18238,11:8845,12:0,13:0,14:0,15:0,16:0,17:0,18:0,19:0,20:0,21:0,22:0,23:0,24:0,25:0,26:0,27:0,28:0,29:0,30:0,31:0,";"std.tec.stt.bmk=32:0,33:0,34:0,35:0,36:0,37:0,38:0,39:0,40:0,41:0,42:0,43:0,44:0,45:0,46:0,47:0,48:0,49:0,50:0,51:0,52:0,53:0,54:0,55:0,56:0,57:0,58:0,59:0,60:0,61:0,62:0,63:0,64:0,65:0,66:0,67:0,68:0,69:0,70:0,71:0,72:0,73:0,74:0,75:0,76:0,77:0,78:0,79:0"} | G12: 6270
B13: IFNC<XBSP> | C13: Ifinanceiro | D13: IFNC | E13: 2025-09-15 | F13: {"std.tec.stt.bmk=0:44065,1:2284,2:3543,3:2552,4:8107,5:0,6:0,7:0,8:0,9:0,10:18238,11:8845,12:0,13:0,14:0,15:0,16:0,17:0,18:0,19:0,20:0,21:0,22:0,23:0,24:0,25:0,26:0,27:0,28:0,29:0,30:0,31:0,";"std.tec.stt.bmk=32:0,33:0,34:0,35:0,36:0,37:0,38:0,39:0,40:0,41:0,42:0,43:0,44:0,45:0,46:0,47:0,48:0,49:0,50:0,51:0,52:0,53:0,54:0,55:0,56:0,57:0,58:0,59:0,60:0,61:0,62:0,63:0,64:0,65:0,66:0,67:0,68:0,69:0,70:0,71:0,72:0,73:0,74:0,75:0,76:0,77:0,78:0,79:0"} | G13: 44065
B14: IGNM<XBSP> | C14: Igc - Nm | D14: IGNM | E14: 2025-09-15 | F14: {"std.tec.stt.bmk=0:58322,1:2284,2:3543,3:2552,4:8107,5:0,6:0,7:0,8:0,9:0,10:18238,11:8845,12:0,13:0,14:0,15:0,16:0,17:0,18:0,19:0,20:0,21:0,22:0,23:0,24:0,25:0,26:0,27:0,28:0,29:0,30:0,31:0,";"std.tec.stt.bmk=32:0,33:0,34:0,35:0,36:0,37:0,38:0,39:0,40:0,41:0,42:0,43:0,44:0,45:0,46:0,47:0,48:0,49:0,50:0,51:0,52:0,53:0,54:0,55:0,56:0,57:0,58:0,59:0,60:0,61:0,62:0,63:0,64:0,65:0,66:0,67:0,68:0,69:0,70:0,71:0,72:0,73:0,74:0,75:0,76:0,77:0,78:0,79:0"} | G14: 58322
B15: IGCT<XBSP> | C15: Igc Trade | D15: IGCT | E15: 2025-09-15 | F15: {"std.tec.stt.bmk=0:50720,1:2284,2:3543,3:2552,4:8107,5:0,6:0,7:0,8:0,9:0,10:18238,11:8845,12:0,13:0,14:0,15:0,16:0,17:0,18:0,19:0,20:0,21:0,22:0,23:0,24:0,25:0,26:0,27:0,28:0,29:0,30:0,31:0,";"std.tec.stt.bmk=32:0,33:0,34:0,35:0,36:0,37:0,38:0,39:0,40:0,41:0,42:0,43:0,44:0,45:0,46:0,47:0,48:0,49:0,50:0,51:0,52:0,53:0,54:0,55:0,56:0,57:0,58:0,59:0,60:0,61:0,62:0,63:0,64:0,65:0,66:0,67:0,68:0,69:0,70:0,71:0,72:0,73:0,74:0,75:0,76:0,77:0,78:0,79:0"} | G15: 50720
B16: IGCX<XBSP> | C16: Igovernanca | D16: IGCX | E16: 2025-09-15 | F16: {"std.tec.stt.bmk=0:6271,1:2284,2:3543,3:2552,4:8107,5:0,6:0,7:0,8:0,9:0,10:18238,11:8845,12:0,13:0,14:0,15:0,16:0,17:0,18:0,19:0,20:0,21:0,22:0,23:0,24:0,25:0,26:0,27:0,28:0,29:0,30:0,31:0,";"std.tec.stt.bmk=32:0,33:0,34:0,35:0,36:0,37:0,38:0,39:0,40:0,41:0,42:0,43:0,44:0,45:0,46:0,47:0,48:0,49:0,50:0,51:0,52:0,53:0,54:0,55:0,56:0,57:0,58:0,59:0,60:0,61:0,62:0,63:0,64:0,65:0,66:0,67:0,68:0,69:0,70:0,71:0,72:0,73:0,74:0,75:0,76:0,77:0,78:0,79:0"} | G16: 6271
B17: IMAT<XBSP> | C17: Imat Basicos | D17: IMAT | E17: 2025-09-15 | F17: {"std.tec.stt.bmk=0:51532,1:2284,2:3543,3:2552,4:8107,5:0,6:0,7:0,8:0,9:0,10:18238,11:8845,12:0,13:0,14:0,15:0,16:0,17:0,18:0,19:0,20:0,21:0,22:0,23:0,24:0,25:0,26:0,27:0,28:0,29:0,30:0,31:0,";"std.tec.stt.bmk=32:0,33:0,34:0,35:0,36:0,37:0,38:0,39:0,40:0,41:0,42:0,43:0,44:0,45:0,46:0,47:0,48:0,49:0,50:0,51:0,52:0,53:0,54:0,55:0,56:0,57:0,58:0,59:0,60:0,61:0,62:0,63:0,64:0,65:0,66:0,67:0,68:0,69:0,70:0,71:0,72:0,73:0,74:0,75:0,76:0,77:0,78:0,79:0"} | G17: 51532
B18: IMOB<XBSP> | C18: Imobiliario | D18: IMOB | E18: 2025-09-15 | F18: {"std.tec.stt.bmk=0:42489,1:2284,2:3543,3:2552,4:8107,5:0,6:0,7:0,8:0,9:0,10:18238,11:8845,12:0,13:0,14:0,15:0,16:0,17:0,18:0,19:0,20:0,21:0,22:0,23:0,24:0,25:0,26:0,27:0,28:0,29:0,30:0,31:0,";"std.tec.stt.bmk=32:0,33:0,34:0,35:0,36:0,37:0,38:0,39:0,40:0,41:0,42:0,43:0,44:0,45:0,46:0,47:0,48:0,49:0,50:0,51:0,52:0,53:0,54:0,55:0,56:0,57:0,58:0,59:0,60:0,61:0,62:0,63:0,64:0,65:0,66:0,67:0,68:0,69:0,70:0,71:0,72:0,73:0,74:0,75:0,76:0,77:0,78:0,79:0"} | G18: 42489
B19: IFIX<XBSP> | C19: Ind Fdo Imob | D19: IFIX | E19: 2025-09-15 | F19: {"std.tec.stt.bmk=0:58141,1:2284,2:3543,3:2552,4:8107,5:0,6:0,7:0,8:0,9:0,10:18238,11:8845,12:0,13:0,14:0,15:0,16:0,17:0,18:0,19:0,20:0,21:0,22:0,23:0,24:0,25:0,26:0,27:0,28:0,29:0,30:0,31:0,";"std.tec.stt.bmk=32:0,33:0,34:0,35:0,36:0,37:0,38:0,39:0,40:0,41:0,42:0,43:0,44:0,45:0,46:0,47:0,48:0,49:0,50:0,51:0,52:0,53:0,54:0,55:0,56:0,57:0,58:0,59:0,60:0,61:0,62:0,63:0,64:0,65:0,66:0,67:0,68:0,69:0,70:0,71:0,72:0,73:0,74:0,75:0,76:0,77:0,78:0,79:0"} | G19: 58141
B20: INDX<XBSP> | C20: Industrial | D20: INDX | E20: 2025-09-15 | F20: {"std.tec.stt.bmk=0:13968,1:2284,2:3543,3:2552,4:8107,5:0,6:0,7:0,8:0,9:0,10:18238,11:8845,12:0,13:0,14:0,15:0,16:0,17:0,18:0,19:0,20:0,21:0,22:0,23:0,24:0,25:0,26:0,27:0,28:0,29:0,30:0,31:0,";"std.tec.stt.bmk=32:0,33:0,34:0,35:0,36:0,37:0,38:0,39:0,40:0,41:0,42:0,43:0,44:0,45:0,46:0,47:0,48:0,49:0,50:0,51:0,52:0,53:0,54:0,55:0,56:0,57:0,58:0,59:0,60:0,61:0,62:0,63:0,64:0,65:0,66:0,67:0,68:0,69:0,70:0,71:0,72:0,73:0,74:0,75:0,76:0,77:0,78:0,79:0"} | G20: 13968
B21: ISEE<XBSP> | C21: Isustentabil | D21: ISEE<XBSP> | E21: 2025-09-15 | F21: {"std.tec.stt.bmk=0:13514,1:2284,2:3543,3:2552,4:8107,5:0,6:0,7:0,8:0,9:0,10:18238,11:8845,12:0,13:0,14:0,15:0,16:0,17:0,18:0,19:0,20:0,21:0,22:0,23:0,24:0,25:0,26:0,27:0,28:0,29:0,30:0,31:0,";"std.tec.stt.bmk=32:0,33:0,34:0,35:0,36:0,37:0,38:0,39:0,40:0,41:0,42:0,43:0,44:0,45:0,46:0,47:0,48:0,49:0,50:0,51:0,52:0,53:0,54:0,55:0,56:0,57:0,58:0,59:0,60:0,61:0,62:0,63:0,64:0,65:0,66:0,67:0,68:0,69:0,70:0,71:0,72:0,73:0,74:0,75:0,76:0,77:0,78:0,79:0"} | G21: 13514
B22: ITAG<XBSP> | C22: Itag Along | D22: ITAG | E22: 2025-09-15 | F22: {"std.tec.stt.bmk=0:12910,1:2284,2:3543,3:2552,4:8107,5:0,6:0,7:0,8:0,9:0,10:18238,11:8845,12:0,13:0,14:0,15:0,16:0,17:0,18:0,19:0,20:0,21:0,22:0,23:0,24:0,25:0,26:0,27:0,28:0,29:0,30:0,31:0,";"std.tec.stt.bmk=32:0,33:0,34:0,35:0,36:0,37:0,38:0,39:0,40:0,41:0,42:0,43:0,44:0,45:0,46:0,47:0,48:0,49:0,50:0,51:0,52:0,53:0,54:0,55:0,56:0,57:0,58:0,59:0,60:0,61:0,62:0,63:0,64:0,65:0,66:0,67:0,68:0,69:0,70:0,71:0,72:0,73:0,74:0,75:0,76:0,77:0,78:0,79:0"} | G22: 12910
B23: IVBX<XBSP> | C23: Ivbx2 | D23: IVBX | E23: 2025-09-15 | F23: {"std.tec.stt.bmk=0:6402,1:2284,2:3543,3:2552,4:8107,5:0,6:0,7:0,8:0,9:0,10:18238,11:8845,12:0,13:0,14:0,15:0,16:0,17:0,18:0,19:0,20:0,21:0,22:0,23:0,24:0,25:0,26:0,27:0,28:0,29:0,30:0,31:0,";"std.tec.stt.bmk=32:0,33:0,34:0,35:0,36:0,37:0,38:0,39:0,40:0,41:0,42:0,43:0,44:0,45:0,46:0,47:0,48:0,49:0,50:0,51:0,52:0,53:0,54:0,55:0,56:0,57:0,58:0,59:0,60:0,61:0,62:0,63:0,64:0,65:0,66:0,67:0,68:0,69:0,70:0,71:0,72:0,73:0,74:0,75:0,76:0,77:0,78:0,79:0"} | G23: 6402
B24: MLCX<XBSP> | C24: Midlarge Cap | D24: MLCX | E24: 2025-09-15 | F24: {"std.tec.stt.bmk=0:21251,1:2284,2:3543,3:2552,4:8107,5:0,6:0,7:0,8:0,9:0,10:18238,11:8845,12:0,13:0,14:0,15:0,16:0,17:0,18:0,19:0,20:0,21:0,22:0,23:0,24:0,25:0,26:0,27:0,28:0,29:0,30:0,31:0,";"std.tec.stt.bmk=32:0,33:0,34:0,35:0,36:0,37:0,38:0,39:0,40:0,41:0,42:0,43:0,44:0,45:0,46:0,47:0,48:0,49:0,50:0,51:0,52:0,53:0,54:0,55:0,56:0,57:0,58:0,59:0,60:0,61:0,62:0,63:0,64:0,65:0,66:0,67:0,68:0,69:0,70:0,71:0,72:0,73:0,74:0,75:0,76:0,77:0,78:0,79:0"} | G24: 21251
B25: SMLL<XBSP> | C25: Small Cap | D25: SMLL | E25: 2025-09-15 | F25: {"std.tec.stt.bmk=0:21250,1:2284,2:3543,3:2552,4:8107,5:0,6:0,7:0,8:0,9:0,10:18238,11:8845,12:0,13:0,14:0,15:0,16:0,17:0,18:0,19:0,20:0,21:0,22:0,23:0,24:0,25:0,26:0,27:0,28:0,29:0,30:0,31:0,";"std.tec.stt.bmk=32:0,33:0,34:0,35:0,36:0,37:0,38:0,39:0,40:0,41:0,42:0,43:0,44:0,45:0,46:0,47:0,48:0,49:0,50:0,51:0,52:0,53:0,54:0,55:0,56:0,57:0,58:0,59:0,60:0,61:0,62:0,63:0,64:0,65:0,66:0,67:0,68:0,69:0,70:0,71:0,72:0,73:0,74:0,75:0,76:0,77:0,78:0,79:0"} | G25: 21250
B26: UTIL<XBSP> | C26: Utilities | D26: UTIL | E26: 2025-09-15 | F26: {"std.tec.stt.bmk=0:51534,1:2284,2:3543,3:2552,4:8107,5:0,6:0,7:0,8:0,9:0,10:18238,11:8845,12:0,13:0,14:0,15:0,16:0,17:0,18:0,19:0,20:0,21:0,22:0,23:0,24:0,25:0,26:0,27:0,28:0,29:0,30:0,31:0,";"std.tec.stt.bmk=32:0,33:0,34:0,35:0,36:0,37:0,38:0,39:0,40:0,41:0,42:0,43:0,44:0,45:0,46:0,47:0,48:0,49:0,50:0,51:0,52:0,53:0,54:0,55:0,56:0,57:0,58:0,59:0,60:0,61:0,62:0,63:0,64:0,65:0,66:0,67:0,68:0,69:0,70:0,71:0,72:0,73:0,74:0,75:0,76:0,77:0,78:0,79:0"} | G26: 51534

Sheet Plan1 (hidden)
A3: 12M
A5: Estatisticas | D5: Estatistisca Relativa | E5: IDIV | F5: IBOV | G5: SMLL
A6: Vol | B6: 1 | D6: Tracking Error
A7: Meses Pos | B7: 1 | D7: Information Ratio
A8: Meses Neg | B8: 1 | D8: Alfa Jensen
A9: Melhor Mês | B9: 1 | D9: Treynor
A10: Pior Mês | B10: 1 | D10: Correlacao
A11: Perda Maxima | B11: 1 | D11: Beta
A12: Pico | D12: Meses Acima
A13: Fundo | D13: Meses Abaixo
A14: Recuperacao | D14: Melhor Mês
A15: Tempo Rec | D15: Pior IBOV
C40: 1d | D40: 1w | E40: 1m | F40: 6m | G40: 12m | H40: 24M | I40: 36M | J40: mtd | K40: ytd | L40: Inicio
B41: Dividendos | C41: 2
B42: IDIV | C42: 1
B43: ="Δ "&B42 -> Δ IDIV | C43: =C41-C42 -> 1
B44: IBOV
B45: Δ IBOV
B46: SMLL
B47: Δ SMLL
B48: CDI
B49: % CDI

Sheet Carteira - Atualização
D1: Planilha Auxiliar Não Modificar
B3: =_xll.ECODATASET('Criar Carteira'!$B$2,"ph","latest","1d") -> Código | C3: Descrição | D3: Classe | E3: Tipo de investimento | F3: 2022-06-30 | G3: Ticker | I3: Índice Ações
B4: PRIO3<XBSP> | C4: Petrorio | D4: ON | E4: Ação | F4: 31.4011862 | G4: =IF(F4="","",B4) -> PRIO3<XBSP>
B5: VALE3<XBSP> | C5: Vale | D5: ON | E5: Ação | F5: 23.05605923 | G5: =IF(F5="","",B5) -> VALE3<XBSP> | I5: BDRX
B6: WEGE3<XBSP> | C6: Weg | D6: ON | E6: Ação | F6: 15.64898053 | G6: WEGE3<XBSP> | I6: IDIV<XBSP>
B7: BRKM5<XBSP> | C7: Braskem | D7: PNA | E7: Ação | F7: 4.016917185 | G7: BRKM5<XBSP> | I7: IBRA
B8: PSSA3<XBSP> | C8: Porto Seguro | D8: ON | E8: Ação | F8: 3.321642095 | G8: PSSA3<XBSP> | I8: IBXL
B9: BIDI4<XBSP> | C9: Banco Inter | D9: PN | E9: Ação | F9: 3.150262985 | G9: BIDI4<XBSP> | I9: IBXX
B10: BIDI11<XBSP> | C10: Banco Inter | D10: UNT | E10: Ação | F10: 2.633593868 | G10: BIDI11<XBSP> | I10: ICO2
B11: ENBR3<XBSP> | C11: Energias BR | D11: ON | E11: Ação | F11: 2.254988055 | G11: ENBR3<XBSP> | I11: ICON<XBSP>
B12: MOTV3<XBSP> | C12: Motiva SA | D12: ON | E12: Ação | F12: 2.053283863 | G12: MOTV3<XBSP> | I12: IEEX
B13: TAEE11<XBSP> | C13: Taesa | D13: UNT N2 | E13: Ação | F13: 1.772381281 | G13: TAEE11<XBSP> | I13: IFNC
B14: PETR4<XBSP> | C14: Petrobras | D14: PN | E14: Ação | F14: 1.51389462 | G14: PETR4<XBSP> | I14: IGNM
B15: RAPT4<XBSP> | C15: Randon Part | D15: PN | E15: Ação | F15: 1.331396329 | G15: RAPT4<XBSP> | I15: IGCT
B16: USIM5<XBSP> | C16: Usiminas | D16: PNA | E16: Ação | F16: 1.30414273 | G16: USIM5<XBSP> | I16: IGCX
B17: BRSR6<XBSP> | C17: Banrisul | D17: PNB | E17: Ação | F17: 1.101700192 | G17: BRSR6<XBSP> | I17: IMAT
B18: EMBR3<XBSP> | C18: Embraer | D18: ON | E18: Ação | F18: 0.9904330397 | G18: EMBR3<XBSP> | I18: IMOB
B19: CMIG4<XBSP> | C19: Cemig | D19: PN | E19: Ação | F19: 0.9113384216 | G19: CMIG4<XBSP> | I19: IFIX
B20: CYRE3<XBSP> | C20: Cyrela Realt | D20: ON | E20: Ação | F20: 0.6559892393 | G20: CYRE3<XBSP> | I20: INDX
B21: MRVE3<XBSP> | C21: MRV | D21: ON | E21: Ação | F21: 0.5418150449 | G21: MRVE3<XBSP> | I21: ISEE<XBSP>
B22: RENT3<XBSP> | C22: Localiza | D22: ON | E22: Ação | F22: 0.3570945905 | G22: RENT3<XBSP> | I22: ITAG
B23: BBSE3<XBSP> | C23: BBSeguridade | D23: ON | E23: Ação | F23: 0.2914634873 | G23: BBSE3<XBSP> | I23: IVBX
B24: ODPV3<XBSP> | C24: Odontoprev | D24: ON | E24: Ação | F24: 0.2621921753 | G24: ODPV3<XBSP> | I24: MLCX
B25: JHSF3<XBSP> | C25: JHSF Part | D25: ON | E25: Ação | F25: 0.2523208319 | G25: JHSF3<XBSP> | I25: SMLL
B26: LWSA3<XBSP> | C26: Lwsa | D26: ON | E26: Ação | F26: 0.2397007341 | G26: LWSA3<XBSP> | I26: UTIL
B27: TASA3<XBSP> | C27: Taurus Armas | D27: ON | E27: Ação | F27: 0.1759810732 | G27: TASA3<XBSP>
B28: SLCE3<XBSP> | C28: SLC Agricola | D28: ON | E28: Ação | F28: 0.1601732113 | G28: SLCE3<XBSP>
B29: QUAL3<XBSP> | C29: Qualicorp | D29: ON | E29: Ação | F29: 0.1593830178 | G29: QUAL3<XBSP>
B30: CSAN3<XBSP> | C30: Cosan | D30: ON | E30: Ação | F30: 0.1564792395 | G30: CSAN3<XBSP>
B31: SBSP3<XBSP> | C31: Sabesp | D31: ON | E31: Ação | F31: 0.1528664428 | G31: SBSP3<XBSP>
B32: CPFE3<XBSP> | C32: CPFL Energia | D32: ON | E32: Ação | F32: 0.07576152993 | G32: CPFE3<XBSP>
B33: POMO4<XBSP> | C33: Marcopolo | D33: PN | E33: Ação | F33: 0.05657874951 | G33: POMO4<XBSP>
B34: CVCB3<XBSP> | C34: Cvc Brasil | D34: ON | E34: Ação
B35: EZTC3<XBSP> | C35: Eztec | D35: ON | E35: Ação
B36: ITSA4<XBSP> | C36: Itausa | D36: PN | E36: Ação
B37: ITUB4<XBSP> | C37: ItauUnibanco | D37: PN | E37: Ação
B38: SANB11<XBSP> | C38: Santander BR | D38: UNT | E38: Ação
C39: Total | F39: 100 | G39: 0
C41: Total Investido + Caixa (em milhares) | F41: 34301336.39 | G41: 0
C42: PL (em milhares) | F42: 34301336.39 | G42: 0
G69: =IF(F69="","",B69) -> 

Sheet Historico
F1: Planilha Auxiliar Não Modificar
D2: Data Final | E2: =Lamina!E3 -> 2022-06-17 | G2: Mínimo: | H2: =ROUNDDOWN(MIN(E$10:J$14999),-1) -> 70 | L2: Data Final | M2: =E2 -> 2022-06-17 | R2: Mínimo: | S2: =ROUNDDOWN(MIN(S$10:S$14999),)-2 -> -19 | U2: Mínimo: | V2: =ROUNDDOWN(MIN(V$10:V$14999),)-2 -> 9
D3: Data Inicial | E3: =Lamina!E5 -> 2017-12-29 | G3: Máximo: | H3: =ROUNDUP(MAX(E$10:J$14999),-1) -> 450 | L3: Data Inicial | M3: =E3 -> 2017-12-29 | R3: Máximo: | S3: =ROUNDUP(MAX(S$10:S$14999),-1)+1 -> 21 | U3: Máximo: | V3: =ROUNDUP(MAX(V$10:V$14999),-1)+1 -> 151
D4: Intervalo | E4: D | G4: VBA Gráfico: | H4: =AtualizarLimitesGrafico("Lamina","Rentabilidade",H2,H3) -> [Lamina]Rentabilidade, Min:70, Max:450 | L4: Intervalo | M4: M | R4: VBA Gráfico: | S4: =AtualizarLimitesGrafico("Lamina","RetornoDiario",S2,S3) -> [Lamina]RetornoDiario, Min:-19, Max:21 | U4: VBA Gráfico: | V4: =AtualizarLimitesGrafico("Lamina","Volatilidade",V2,V3) -> [Lamina]Volatilidade, Min:9, Max:151
D5: Ativos | E5: ='Criar Carteira'!$B$2 -> Economatica <EcoPortfolio>{"type":"F","tolerance":"0d","rebalance":null,"name":"Economatica","data":[["2017-12-29","VALE3",2736405.12016054],["2018-02-01","WEGE3",2000000.0],["2018-03-01","SANB11",449400.423391945],["2018-04-01","BRSR6",584005.120708887],["2018-05-01","CVCB3",711601.739560784],["2018-05-05","SANB11","SELL ALL"],["2018-06-01","VALE3",-200000.0],["2018-07-01","CVCB3","SELL ALL"],["2018-08-01","PRIO3",584236.22],["2018-09-01","CPFE3",12857.365519577499],["2018-10-01","BIDI4",514736.12],["2018-11-01","CSAN3",21746.581395242098],["2018-12-01","POMO4",28282.0246727596],["2019-01-01","SBSP3",36781.54763974],["2019-02-01","QUAL3",47835.4100326317],["2019-03-01","PETR4",500000.0],["2019-04-01","SANB11","SELL ALL"],["2019-05-01","ITSA4",1177970.08644623],["2019-06-01","CMIG4",231454.97144607303],["2019-07-01","TAEE11",301013.529165687],["2019-08-01","CYRE3",391476.338463064],["2019-09-01","BRKM5",861120.68964325206],["2019-10-01","ODPV3",119911.04018044],["2019-11-01","MOTV3",894185.59763512],["2019-12-01","ITSA4",-250000.0],["2020-01-01","MRVE3",463440.24531704],["2020-02-01","BBSE3",118767.76325908],["2020-03-01","ENBR3",647255.87857121],["2020-05-01","EZTC3","SELL ALL"],["2020-06-01","BIDI11",1000000.0],["2020-07-01","ITUB4",400000.0],["2020-08-01","ITSA4","SELL ALL"],["2020-09-01","VALE3",500000.0],["2020-10-01","USIM5",450000.0],["2020-11-01","JHSF3",80000.0],["2020-12-01","RENT3",700000.0],["2021-01-01","PRIO3",1500000.0],["2021-02-01","LWSA3",400000.0],["2021-04-01","RENT3",-500000.0],["2021-05-01","ITUB4","SELL ALL"],["2021-06-01","VALE3",-700000.0],["2021-07-01","PETR4",-200000.0],["2021-08-01","ITSA4","SELL ALL"],["2021-09-15","TASA3",80000.0],["2021-09-25","EMBR3",700000.0],["2021-11-10","PSSA3",1500000.0],["2021-12-19","RAPT4",500000.0],["2022-02-05","VALE3",1000000.0],["2022-03-15","SLCE3",50000.0],[null,"",null],[null,"",null],[null,"",null],[null,"",null],[null,"",null],[null,"",null],[null,"",null],[null,"",null],[null,"",null],[null,"",null],[null,"",null],[null,"",null],[null,"",null],[null,"",null],[null,"",null],[null,"",null],[null,"",null],[null,"",null],[null,"",null],[null,"",null],[null,"",null],[null,"",null],[null,"",null],[null,"",null],[null,"",null],[null,"",null],[null,"",null],[null,"",null],[null,"",null],[null,"",null],[null,"",null],[null,"",null],[null,"",null],[null,"",null],[null,"",null],[null,"",null],[null,"",null],[null,"",null],[null,"",null],[null,"",null],[null,"",null],[null,"",null],[null,"",null],[null,"",null],[null,"",null],[null,"",null],[null,"",null],[null,"",null],[null,"",null],[null,"",null],[null,"",null],[null,"",null],[null,"",null],[null,"",null],[null,"",null],[null,"",null],[null,"",null],[null,"",null],[null,"",null],[null,"",null],[null,"",null],[null,"",null],[null,"",null],[null,"",null],[null,"",null],[null,"",null],[null,"",null],[null,"",null],[null,"",null],[null,"",null],[null,"",null],[null,"",null],[null,"",null],[null,"",null],[null,"",null],[null,"",null],[null,"",null],[null,"",null],[null,"",null],[null,"",null],[null,"",null],[null,"",null],[null,"",null],[null,"",null],[null,"",null],[null,"",null],[null,"",null],[null,"",null],[null,"",null],[null,"",null],[null,"",null],[null,"",null],[null,"",null],[null,"",null],[null,"",null],[null,"",null],[null,"",null],[null,"",null],[null,"",null],[null,"",null],[null,"",null],[null,"",null],[null,"",null],[null,"",null],[null,"",null],[null,"",null],[null,"",null],[null,"",null],[null,"",null],[null,"",null],[null,"",null],[null,"",null],[null,"",null],[null,"",null],[null,"",null],[null,"",null],[null,"",null],[null,"",null],[null,"",null],[null,"",null],[null,"",null],[null,"",null],[null,"",null],[null,"",null],[null,"",null],[null,"",null],[null,"",null],[null,"",null],[null,"",null],[null,"",null],[null,"",null],[null,"",null],[null,"",null],[null,"",null],[null,"",null],[null,"",null],[null,"",null],[null,"",null],[null,"",null],[null,"",null],[null,"",null],[null,"",null],[null,"",null],[null,"",null],[null,"",null]]} | F5: . | L5: Ativos | M5: =E5 -> Economatica <EcoPortfolio>{"type":"F","tolerance":"0d","rebalance":null,"name":"Economatica","data":[["2017-12-29","VALE3",2736405.12016054],["2018-02-01","WEGE3",2000000.0],["2018-03-01","SANB11",449400.423391945],["2018-04-01","BRSR6",584005.120708887],["2018-05-01","CVCB3",711601.739560784],["2018-05-05","SANB11","SELL ALL"],["2018-06-01","VALE3",-200000.0],["2018-07-01","CVCB3","SELL ALL"],["2018-08-01","PRIO3",584236.22],["2018-09-01","CPFE3",12857.365519577499],["2018-10-01","BIDI4",514736.12],["2018-11-01","CSAN3",21746.581395242098],["2018-12-01","POMO4",28282.0246727596],["2019-01-01","SBSP3",36781.54763974],["2019-02-01","QUAL3",47835.4100326317],["2019-03-01","PETR4",500000.0],["2019-04-01","SANB11","SELL ALL"],["2019-05-01","ITSA4",1177970.08644623],["2019-06-01","CMIG4",231454.97144607303],["2019-07-01","TAEE11",301013.529165687],["2019-08-01","CYRE3",391476.338463064],["2019-09-01","BRKM5",861120.68964325206],["2019-10-01","ODPV3",119911.04018044],["2019-11-01","MOTV3",894185.59763512],["2019-12-01","ITSA4",-250000.0],["2020-01-01","MRVE3",463440.24531704],["2020-02-01","BBSE3",118767.76325908],["2020-03-01","ENBR3",647255.87857121],["2020-05-01","EZTC3","SELL ALL"],["2020-06-01","BIDI11",1000000.0],["2020-07-01","ITUB4",400000.0],["2020-08-01","ITSA4","SELL ALL"],["2020-09-01","VALE3",500000.0],["2020-10-01","USIM5",450000.0],["2020-11-01","JHSF3",80000.0],["2020-12-01","RENT3",700000.0],["2021-01-01","PRIO3",1500000.0],["2021-02-01","LWSA3",400000.0],["2021-04-01","RENT3",-500000.0],["2021-05-01","ITUB4","SELL ALL"],["2021-06-01","VALE3",-700000.0],["2021-07-01","PETR4",-200000.0],["2021-08-01","ITSA4","SELL ALL"],["2021-09-15","TASA3",80000.0],["2021-09-25","EMBR3",700000.0],["2021-11-10","PSSA3",1500000.0],["2021-12-19","RAPT4",500000.0],["2022-02-05","VALE3",1000000.0],["2022-03-15","SLCE3",50000.0],[null,"",null],[null,"",null],[null,"",null],[null,"",null],[null,"",null],[null,"",null],[null,"",null],[null,"",null],[null,"",null],[null,"",null],[null,"",null],[null,"",null],[null,"",null],[null,"",null],[null,"",null],[null,"",null],[null,"",null],[null,"",null],[null,"",null],[null,"",null],[null,"",null],[null,"",null],[null,"",null],[null,"",null],[null,"",null],[null,"",null],[null,"",null],[null,"",null],[null,"",null],[null,"",null],[null,"",null],[null,"",null],[null,"",null],[null,"",null],[null,"",null],[null,"",null],[null,"",null],[null,"",null],[null,"",null],[null,"",null],[null,"",null],[null,"",null],[null,"",null],[null,"",null],[null,"",null],[null,"",null],[null,"",null],[null,"",null],[null,"",null],[null,"",null],[null,"",null],[null,"",null],[null,"",null],[null,"",null],[null,"",null],[null,"",null],[null,"",null],[null,"",null],[null,"",null],[null,"",null],[null,"",null],[null,"",null],[null,"",null],[null,"",null],[null,"",null],[null,"",null],[null,"",null],[null,"",null],[null,"",null],[null,"",null],[null,"",null],[null,"",null],[null,"",null],[null,"",null],[null,"",null],[null,"",null],[null,"",null],[null,"",null],[null,"",null],[null,"",null],[null,"",null],[null,"",null],[null,"",null],[null,"",null],[null,"",null],[null,"",null],[null,"",null],[null,"",null],[null,"",null],[null,"",null],[null,"",null],[null,"",null],[null,"",null],[null,"",null],[null,"",null],[null,"",null],[null,"",null],[null,"",null],[null,"",null],[null,"",null],[null,"",null],[null,"",null],[null,"",null],[null,"",null],[null,"",null],[null,"",null],[null,"",null],[null,"",null],[null,"",null],[null,"",null],[null,"",null],[null,"",null],[null,"",null],[null,"",null],[null,"",null],[null,"",null],[null,"",null],[null,"",null],[null,"",null],[null,"",null],[null,"",null],[null,"",null],[null,"",null],[null,"",null],[null,"",null],[null,"",null],[null,"",null],[null,"",null],[null,"",null],[null,"",null],[null,"",null],[null,"",null],[null,"",null],[null,"",null],[null,"",null],[null,"",null],[null,"",null],[null,"",null],[null,"",null],[null,"",null],[null,"",null],[null,"",null],[null,"",null],[null,"",null],[null,"",null]]}
E6: IDIV | I6: Escolha Índice | J6: =Lamina!L23 -> A | N6: .
E7: CDI Acumulado | J7: =Lamina!L24 -> 5
I8: =Lamina!L22 -> IFNC | J8: =_xll.ECOBENCHMARK(I8,$J$6,$J$7,$J$9) -> Ifinanceiro+5%a.a. <EcoBenchmark>{"ticker":"IFNC","operation":{"type":"A","value":5.0},"name":"Ifinanceiro+5%a.a."} | K8: .
B9: Lista de Índices | D9: Data | E9: =_xll.ECONOMATICA(E5,"name") -> Economatica | F9: =Lamina!$E$9 -> IMOB | G9: IBOV | H9: CDI | I9: =_xll.ECONOMATICA($I$8,"Name") -> Ifinanceiro | J9: =I9&"+"&J7&"%a.a." -> Ifinanceiro+5%a.a. | L9: Data | M9: Patrimônio | N9: Compras | O9: Vendas | P9: Vendas | R9: Data | S9: =_xll.ECONOMATICA(E5,"name") -> Economatica | U9: Data | V9: =_xll.ECONOMATICA(E5,"name") -> Economatica | Z9: Ativos | AA9: =_xll.ECONOMATICA($Z$10:$Z$14,"return",Lamina!$K$120,'Criar Carteira'!$B$3,,,,,,"true","RETORNO") -> RETORNO | AB9: =_xll.ECONOMATICA($Z$10:$Z$14,"VOLATILITY",Lamina!$K$120,'Criar Carteira'!$B$3,,,,,,"true","VOLATILIDADE") -> VOLATILIDADE
D10: =_xll.ECONOMATICA($E$5,"close",,$E$2,$E$3,$E$4,,,"true","false",,{"def.defdef=7"}) -> 2017-12-29 | F10: =_xll.ECONOMATICA(F9,"close",,$E$2,$E$3,$E$4,,,"false","false",,{"def.defdef=7"}) ->  | G10: =_xll.ECONOMATICA(G9,"close",,$E$2,$E$3,$E$4,,,"false","false",,{"def.defdef=7"}) ->  | H10: =_xll.ECONOMATICA(E7,"close",,$E$2,$E$3,$E$4,,,"false","false",,{"def.defdef=7"}) -> 100 | I10: =_xll.ECONOMATICA(I8,"close",,$E$2,$E$3,$E$4,,,"false","false",,{"def.defdef=7"}) ->  | J10: =_xll.ECONOMATICA(J8,"close",,$E$2,$E$3,$E$4,,,"false","false",,{"def.defdef=7"}) ->  | L10: =_xll.ECONOMATICA($M$5,"Net Assets",,$M$2,$M$3,$M$4,,,"true","false") -> 2017-12-31 | M10: 2736405.12 | N10: =_xll.ECONOMATICA($M$5,"Purchases",,$M$2,$M$3,$M$4,,,"false","false") -> 2736405.12 | O10: =_xll.ECONOMATICA($M$5,"Sales",,$M$2,$M$3,$M$4,,,"false","false") -> 0 | P10: =IF(O10="","",O10*(-1)) -> 0 | R10: =_xll.ECONOMATICA($E$5,"return","1d",$E$2,$E$3,$E$4,,,"true","false",,{"def.defdef=7"}) -> 2017-12-29 | U10: =_xll.ECONOMATICA($E$5,"volatility","1m",$E$2,$E$3,$E$4,,,"true","false",,{"def.defdef=7"}) -> 2017-12-29 | Z10: =$E$5 -> Economatica <EcoPortfolio>{"type":"F","tolerance":"0d","rebalance":null,"name":"Economatica","data":[["2017-12-29","VALE3",2736405.12016054],["2018-02-01","WEGE3",2000000.0],["2018-03-01","SANB11",449400.423391945],["2018-04-01","BRSR6",584005.120708887],["2018-05-01","CVCB3",711601.739560784],["2018-05-05","SANB11","SELL ALL"],["2018-06-01","VALE3",-200000.0],["2018-07-01","CVCB3","SELL ALL"],["2018-08-01","PRIO3",584236.22],["2018-09-01","CPFE3",12857.365519577499],["2018-10-01","BIDI4",514736.12],["2018-11-01","CSAN3",21746.581395242098],["2018-12-01","POMO4",28282.0246727596],["2019-01-01","SBSP3",36781.54763974],["2019-02-01","QUAL3",47835.4100326317],["2019-03-01","PETR4",500000.0],["2019-04-01","SANB11","SELL ALL"],["2019-05-01","ITSA4",1177970.08644623],["2019-06-01","CMIG4",231454.97144607303],["2019-07-01","TAEE11",301013.529165687],["2019-08-01","CYRE3",391476.338463064],["2019-09-01","BRKM5",861120.68964325206],["2019-10-01","ODPV3",119911.04018044],["2019-11-01","MOTV3",894185.59763512],["2019-12-01","ITSA4",-250000.0],["2020-01-01","MRVE3",463440.24531704],["2020-02-01","BBSE3",118767.76325908],["2020-03-01","ENBR3",647255.87857121],["2020-05-01","EZTC3","SELL ALL"],["2020-06-01","BIDI11",1000000.0],["2020-07-01","ITUB4",400000.0],["2020-08-01","ITSA4","SELL ALL"],["2020-09-01","VALE3",500000.0],["2020-10-01","USIM5",450000.0],["2020-11-01","JHSF3",80000.0],["2020-12-01","RENT3",700000.0],["2021-01-01","PRIO3",1500000.0],["2021-02-01","LWSA3",400000.0],["2021-04-01","RENT3",-500000.0],["2021-05-01","ITUB4","SELL ALL"],["2021-06-01","VALE3",-700000.0],["2021-07-01","PETR4",-200000.0],["2021-08-01","ITSA4","SELL ALL"],["2021-09-15","TASA3",80000.0],["2021-09-25","EMBR3",700000.0],["2021-11-10","PSSA3",1500000.0],["2021-12-19","RAPT4",500000.0],["2022-02-05","VALE3",1000000.0],["2022-03-15","SLCE3",50000.0],[null,"",null],[null,"",null],[null,"",null],[null,"",null],[null,"",null],[null,"",null],[null,"",null],[null,"",null],[null,"",null],[null,"",null],[null,"",null],[null,"",null],[null,"",null],[null,"",null],[null,"",null],[null,"",null],[null,"",null],[null,"",null],[null,"",null],[null,"",null],[null,"",null],[null,"",null],[null,"",null],[null,"",null],[null,"",null],[null,"",null],[null,"",null],[null,"",null],[null,"",null],[null,"",null],[null,"",null],[null,"",null],[null,"",null],[null,"",null],[null,"",null],[null,"",null],[null,"",null],[null,"",null],[null,"",null],[null,"",null],[null,"",null],[null,"",null],[null,"",null],[null,"",null],[null,"",null],[null,"",null],[null,"",null],[null,"",null],[null,"",null],[null,"",null],[null,"",null],[null,"",null],[null,"",null],[null,"",null],[null,"",null],[null,"",null],[null,"",null],[null,"",null],[null,"",null],[null,"",null],[null,"",null],[null,"",null],[null,"",null],[null,"",null],[null,"",null],[null,"",null],[null,"",null],[null,"",null],[null,"",null],[null,"",null],[null,"",null],[null,"",null],[null,"",null],[null,"",null],[null,"",null],[null,"",null],[null,"",null],[null,"",null],[null,"",null],[null,"",null],[null,"",null],[null,"",null],[null,"",null],[null,"",null],[null,"",null],[null,"",null],[null,"",null],[null,"",null],[null,"",null],[null,"",null],[null,"",null],[null,"",null],[null,"",null],[null,"",null],[null,"",null],[null,"",null],[null,"",null],[null,"",null],[null,"",null],[null,"",null],[null,"",null],[null,"",null],[null,"",null],[null,"",null],[null,"",null],[null,"",null],[null,"",null],[null,"",null],[null,"",null],[null,"",null],[null,"",null],[null,"",null],[null,"",null],[null,"",null],[null,"",null],[null,"",null],[null,"",null],[null,"",null],[null,"",null],[null,"",null],[null,"",null],[null,"",null],[null,"",null],[null,"",null],[null,"",null],[null,"",null],[null,"",null],[null,"",null],[null,"",null],[null,"",null],[null,"",null],[null,"",null],[null,"",null],[null,"",null],[null,"",null],[null,"",null],[null,"",null],[null,"",null],[null,"",null],[null,"",null],[null,"",null],[null,"",null],[null,"",null],[null,"",null],[null,"",null]]} | AA10: -31.80026118 | AB10: 31.2022402
B11: BDRX | D11: 2018-01-01 | L11: 2018-01-31 | M11: 2817287.437 | N11: 0 | O11: 0 | P11: =IF(O11="","",O11*(-1)) -> 0 | R11: 2018-01-01 | U11: 2018-01-01 | Z11: =$F$9 -> IMOB | AA11: -38.54383704 | AB11: 35.15969267
B12: CDI Acumulado | D12: 2018-01-02 | E12: 100 | F12: 100 | G12: 100 | H12: 100.026444 | I12: 100 | J12: 100 | L12: 2018-02-28 | M12: 5054313.865 | N12: 2000000 | O12: 0 | P12: 0 | R12: 2018-01-02 | U12: 2018-01-02 | Z12: =$G$9 -> IBOV | AA12: -22.04661323 | AB12: 20.24228279
B13: IBOV | D13: 2018-01-03 | E13: 99.40076702 | F13: 100.4073667 | G13: 100.1336739 | H13: 100.0528951 | I13: 100.912736 | J13: 100.9322758 | L13: 2018-03-31 | M13: 5911504.37 | N13: 1033405.544 | O13: 0 | P13: 0 | R13: 2018-01-03 | S13: -0.5992329817 | U13: 2018-01-03 | Z13: =$E$7 -> CDI Acumulado | AA13: 8.369835675 | AB13: 0.1713753745
B14: IBRA | D14: 2018-01-04 | E14: 99.80824545 | F14: 100.8972545 | G14: 100.9710745 | H14: 100.0793531 | I14: 102.1794001 | J14: 102.218974 | L14: 2018-04-30 | M14: 7084907.048 | N14: 711601.7396 | O14: 0 | P14: 0 | R14: 2018-01-04 | S14: 0.4099348927 | U14: 2018-01-04 | Z14: =$J$8 -> Ifinanceiro+5%a.a. <EcoBenchmark>{"ticker":"IFNC","operation":{"type":"A","value":5.0},"name":"Ifinanceiro+5%a.a."} | AA14: -21.32091145 | AB14: 25.10889274
B15: IBXL | D15: 2018-01-05 | E15: 101.3662512 | F15: 101.3858325 | G15: 101.5154888 | H15: 100.105818 | I15: 102.7820673 | J15: 102.8417841 | L15: 2018-05-31 | M15: 6497900.751 | N15: 0 | O15: 448014.257 | P15: -448014.257 | R15: 2018-01-05 | S15: 1.560999039 | U15: 2018-01-05
B16: IBXX | D16: 2018-01-08 | E16: 103.6193672 | F16: 100.5580006 | G16: 101.909719 | H16: 100.13229 | I16: 102.965934 | J16: 103.0457065 | L16: 2018-06-30 | M16: 5460564.001 | N16: 0 | O16: 754654.2271 | P16: -754654.2271 | R16: 2018-01-08 | S16: 2.222747695 | U16: 2018-01-08
B17: ICO2 | D17: 2018-01-09 | E17: 103.2358581 | F17: 99.7039715 | G17: 101.248539 | H17: 100.1587689 | I17: 101.8403769 | J17: 101.9390121 | L17: 2018-07-31 | M17: 6095853.934 | N17: 0 | O17: 0 | P17: 0 | R17: 2018-01-09 | S17: -0.3701133471 | U17: 2018-01-09
B18: ICON | D18: 2018-01-10 | E18: 101.7976989 | F18: 98.99140731 | G18: 100.3973884 | H18: 100.1852549 | I18: 101.2985506 | J18: 101.4162945 | L18: 2018-08-31 | M18: 6856523.172 | N18: 597093.5855 | O18: 0 | P18: 0 | R18: 2018-01-10 | S18: -1.393081031 | U18: 2018-01-10
B19: IDA DI | D19: 2018-01-11 | E19: 103.7871524 | F19: 100.6117049 | G19: 101.8929006 | H19: 100.2117479 | I19: 102.9867029 | J19: 103.1263736 | L19: 2018-09-30 | M19: 7473254.166 | N19: 0 | O19: 0 | P19: 0 | R19: 2018-01-11 | S19: 1.954320697 | U19: 2018-01-11
B20: IDA Geral | D20: 2018-01-12 | E20: 104.3863854 | F20: 99.98952112 | G20: 101.8719483 | H20: 100.2382479 | I20: 102.936613 | J20: 103.0961745 | L20: 2018-10-31 | M20: 8000623.161 | N20: 514736.12 | O20: 0 | P20: 0 | R20: 2018-01-12 | S20: 0.5773672057 | U20: 2018-01-12
B21: IDA IPCA | D21: 2018-01-15 | E21: 104.1946309 | F21: 101.7591428 | G21: 102.3896587 | H21: 100.264755 | I21: 103.4039153 | J21: 103.5842543 | L21: 2018-11-30 | M21: 7657834.566 | N21: 50028.60607 | O21: 0 | P21: 0 | R21: 2018-01-15 | S21: -0.1836969002 | U21: 2018-01-15
B22: IDIV | D22: 2018-01-16 | E22: 101.3902205 | F22: 100.6601697 | G22: 102.4915831 | H22: 100.291269 | I22: 104.5668566 | J22: 104.7695064 | L22: 2018-12-31 | M22: 7568928.583 | N22: 36781.54764 | O22: 0 | P22: 0 | R22: 2018-01-16 | S22: -2.691511387 | U22: 2018-01-16
B23: IDKA IPCA 10A | D23: 2018-01-17 | E23: 103.4276127 | F23: 101.5207482 | G23: 104.2342739 | H23: 100.3177901 | I23: 106.4835901 | J23: 106.7106129 | L23: 2019-01-31 | M23: 7585609.278 | N23: 0 | O23: 0 | P23: 0 | R23: 2018-01-17 | S23: 2.009456265 | U23: 2018-01-17
B24: IDKA IPCA 15A | D24: 2018-01-18 | E24: 102.7325024 | F24: 102.5385099 | G24: 103.9434703 | H24: 100.3443183 | I24: 106.9530914 | J24: 107.2018688 | L24: 2019-02-28 | M24: 7936092.709 | N24: 47835.41003 | O24: 0 | P24: 0 | R24: 2018-01-18 | S24: -0.67207416 | U24: 2018-01-18
B25: IDKA IPCA 20A | D25: 2018-01-19 | E25: 102.780441 | F25: 102.4088337 | G25: 104.2732258 | H25: 100.3708534 | I25: 107.7584395 | J25: 108.0300041 | L25: 2019-03-31 | M25: 9193221.091 | N25: 500000 | O25: 0 | P25: 0 | R25: 2018-01-19 | S25: 0.0466635558 | U25: 2018-01-19
B26: IDKA IPCA 2A | D26: 2018-01-22 | E26: 102.2291467 | F26: 101.7277062 | G26: 104.8585563 | H26: 100.3973954 | I26: 109.2710329 | J26: 109.5676208 | L26: 2019-04-30 | M26: 10560133.82 | N26: 1177970.086 | O26: 0 | P26: 0 | R26: 2018-01-22 | S26: -0.5363805969 | U26: 2018-01-22
B27: IDKA IPCA 3A | D27: 2018-01-23 | E27: 97.96260786 | F27: 100.2226763 | G27: 103.5784732 | H27: 100.4239444 | I27: 108.9948053 | J27: 109.3118055 | L27: 2019-05-31 | M27: 10752593.5 | N27: 231454.9715 | O27: 0 | P27: 0 | R27: 2018-01-23 | S27: -4.173505276 | U27: 2018-01-23
B28: IDKA IPCA 5A | D28: 2018-01-24 | E28: 100.1438159 | F28: 102.5987635 | G28: 107.4321257 | H28: 100.4505004 | I28: 114.4138014 | J28: 114.7687806 | L28: 2019-06-30 | M28: 11083331.21 | N28: 0 | O28: 0 | P28: 0 | R28: 2018-01-24 | S28: 2.226572058 | U28: 2018-01-24
B29: IDKA PRE 1A | D29: 2018-01-25 | H29: 100.4770635 | L29: 2019-07-31 | M29: 12265317.75 | N29: 301013.5292 | O29: 0 | P29: 0 | R29: 2018-01-25 | U29: 2018-01-25
B30: IDKA PRE 2A | D30: 2018-01-26 | E30: 99.30488974 | F30: 105.2368228 | G30: 109.8083168 | H30: 100.5036336 | I30: 118.0492298 | J30: 118.4384172 | L30: 2019-08-31 | M30: 13409393.3 | N30: 1252597.028 | O30: 0 | P30: 0 | R30: 2018-01-26 | S30: -0.8377213979 | U30: 2018-01-26 | V30: 29.48341845
B31: IDKA PRE 3A | D31: 2018-01-29 | E31: 100.4074784 | F31: 104.2256104 | G31: 108.7390925 | H31: 100.5302107 | I31: 115.6636059 | J31: 116.0673981 | L31: 2019-09-30 | M31: 13942452.26 | N31: 0 | O31: 0 | P31: 0 | R31: 2018-01-29 | S31: 1.110306541 | U31: 2018-01-29 | V31: 28.89191365
B32: IDKA PRE 3M | D32: 2018-01-30 | E32: 99.40076702 | F32: 103.655821 | G32: 108.4623597 | H32: 100.5567948 | I32: 115.8108214 | J32: 116.2376303 | L32: 2019-10-31 | M32: 14099920.95 | N32: 119911.0402 | O32: 0 | P32: 0 | R32: 2018-01-30 | S32: -1.002625925 | U32: 2018-01-30 | V32: 28.47317629
B33: IDKA PRE 5A | D33: 2018-01-31 | E33: 99.35282838 | F33: 103.486849 | G33: 109.0147211 | H33: 100.583386 | I33: 116.8826234 | J33: 117.3360979 | L33: 2019-11-30 | M33: 15539447.46 | N33: 894185.5976 | O33: 250000 | P33: -250000 | R33: 2018-01-31 | S33: -0.04822763449 | U33: 2018-01-31 | V33: 27.79489788
B34: IEEX | D34: 2018-02-01 | E34: 100.1677852 | F34: 105.1621607 | G34: 109.762612 | H34: 100.6099843 | I34: 116.8172622 | J34: 117.2931902 | L34: 2019-12-31 | M34: 18022260.91 | N34: 463440.2453 | O34: 0 | P34: 0 | R34: 2018-02-01 | S34: 0.8202653798 | U34: 2018-02-01 | V34: 27.24829101
B35: IFIX | D35: 2018-02-02 | E35: 97.45440358 | F35: 103.9217227 | G35: 107.8960301 | H35: 100.6365897 | I35: 114.917877 | J35: 115.4084089 | L35: 2020-01-31 | M35: 19472314.33 | N35: 118767.7633 | O35: 0 | P35: 0 | R35: 2018-02-02 | S35: -2.708836623 | U35: 2018-02-02 | V35: 26.21612596
B36: IFNC | D36: 2018-02-05 | E36: 96.38115759 | F36: 101.2142408 | G36: 105.0969277 | H36: 100.6632022 | I36: 111.5338754 | J36: 112.0316512 | L36: 2020-02-29 | M36: 18928494.87 | N36: 647255.8786 | O36: 0 | P36: 0 | R36: 2018-02-05 | S36: -1.101280141 | U36: 2018-02-05 | V36: 26.87677529
B37: IGCT | D37: 2018-02-06 | E37: 100.5606513 | F37: 100.4898879 | G37: 107.7069198 | H37: 100.6898216 | I37: 114.397064 | J37: 114.9298677 | L37: 2020-03-31 | M37: 13576154.87 | N37: 0 | O37: 0 | P37: 0 | R37: 2018-02-06 | S37: 4.336422021 | U37: 2018-02-06 | V37: 30.31668593
B38: IGNM | D38: 2018-02-07 | E38: 98.99854021 | F38: 99.30184428 | G38: 106.2596288 | H38: 100.7164481 | I38: 112.9027962 | J38: 113.4506037 | L38: 2020-04-30 | M38: 15031615.27 | N38: 0 | O38: 0 | P38: 0 | R38: 2018-02-07 | S38: -1.553401955 | U38: 2018-02-07 | V38: 30.04727812
B39: IGPDI | D39: 2018-02-08 | E39: 97.64974921 | F39: 98.56963219 | G39: 104.6751077 | H39: 100.7421454 | I39: 111.070727 | J39: 111.6312562 | L39: 2020-05-31 | M39: 17251590.49 | N39: 0 | O39: 0 | P39: 0 | R39: 2018-02-08 | S39: -1.362435245 | U39: 2018-02-08 | V39: 29.21662994
B40: IGPM | D40: 2018-02-09 | E40: 97.68046008 | F40: 97.37634916 | G40: 103.8613684 | H40: 100.7678494 | I40: 110.1626334 | J40: 110.7400183 | L40: 2020-06-30 | M40: 20424348.75 | N40: 1000000 | O40: 0 | P40: 0 | R40: 2018-02-09 | S40: 0.03145002884 | U40: 2018-02-09 | V40: 29.23096079
B41: IHFA | D41: 2018-02-12 | L41: 2020-07-31 | M41: 24022939.48 | N41: 400000 | O41: 922774.9725 | P41: -922774.9725 | R41: 2018-02-12 | U41: 2018-02-12
B42: IMA ex-C | D42: 2018-02-13 | L42: 2020-08-31 | M42: 23777117.81 | N42: 0 | O42: 0 | P42: 0 | R42: 2018-02-13 | U42: 2018-02-13
B43: IMA-B | D43: 2018-02-14 | E43: 102.9368672 | F43: 99.70659122 | G43: 107.2560335 | H43: 100.7935598 | I43: 113.6270231 | J43: 114.2446826 | L43: 2020-09-30 | M43: 23059386.53 | N43: 500000 | O43: 0 | P43: 0 | R43: 2018-02-14 | S43: 5.381226835 | U43: 2018-02-14 | V43: 35.01666808
B44: IMA-B 5 | D44: 2018-02-15 | E44: 105.8605057 | F44: 99.24290056 | G44: 108.2160028 | H44: 100.8192769 | I44: 114.6326088 | J44: 115.2780515 | L44: 2020-10-31 | M44: 24313249.59 | N44: 530000 | O44: 0 | P44: 0 | R44: 2018-02-15 | S44: 2.84022487 | U44: 2018-02-15 | V44: 36.3897921
B45: IMA-B 5+ | D45: 2018-02-16 | E45: 105.0219801 | F45: 99.58477418 | G45: 108.5164353 | H45: 100.8450005 | I45: 115.4210974 | J45: 116.0934546 | L45: 2020-11-30 | M45: 29066712.93 | N45: 0 | O45: 0 | P45: 0 | R45: 2018-02-16 | S45: -0.7921043109 | U45: 2018-02-16 | V45: 35.10230207
B46: IMA-C | D46: 2018-02-19 | E46: 105.7888494 | F46: 99.27171749 | G46: 108.8606726 | H46: 100.8707306 | I46: 114.58765 | J46: 115.2774691 | L46: 2020-12-31 | M46: 35821107.67 | N46: 2200000 | O46: 0 | P46: 0 | R46: 2018-02-19 | S46: 0.7301988426 | U46: 2018-02-19 | V46: 36.28875987
B47: IMA-G | D47: 2018-02-20 | E47: 104.4314727 | F47: 99.52059101 | G47: 110.1589605 | H47: 100.8964673 | I47: 117.0903133 | J47: 117.8180072 | L47: 2021-01-31 | M47: 38501347.99 | N47: 0 | O47: 0 | P47: 0 | R47: 2018-02-20 | S47: -1.283099959 | U47: 2018-02-20 | V47: 35.69375757
B48: IMA-S | D48: 2018-02-21 | E48: 103.2390932 | F48: 100.1296762 | G48: 110.4771743 | H48: 100.9222106 | I48: 118.6900143 | J48: 119.4507748 | L48: 2021-02-28 | M48: 41383605.11 | N48: 400000 | O48: 0 | P48: 0 | R48: 2018-02-21 | S48: -1.141781715 | U48: 2018-02-21 | V48: 35.05020785
B49: IMAT | D49: 2018-02-22 | E49: 104.726968 | F49: 100.0013099 | G49: 111.2919406 | H49: 100.9479605 | I49: 119.25151 | J49: 120.0391083 | L49: 2021-03-31 | M49: 43230707.52 | N49: 0 | O49: 0 | P49: 0 | R49: 2018-02-22 | S49: 1.441193219 | U49: 2018-02-22 | V49: 35.31465097
B50: IMOB | D50: 2018-02-23 | E50: 106.8182856 | F50: 101.381903 | G50: 112.0709648 | H50: 100.9737169 | I50: 120.4032116 | J50: 121.221884 | L50: 2021-04-30 | M50: 48232253.16 | N50: 0 | O50: 930725.015 | P50: -930725.015 | R50: 2018-02-23 | S50: 1.996923657 | U50: 2018-02-23 | V50: 31.99809006
B51: INCC-DI | D51: 2018-02-26 | E51: 109.2208982 | F51: 101.8036781 | G51: 112.5323786 | H51: 100.9994799 | I51: 120.6286162 | J51: 121.4723375 | L51: 2021-05-31 | M51: 47434158.1 | N51: 0 | O51: 0 | P51: 0 | R51: 2018-02-26 | S51: 2.249252157 | U51: 2018-02-26 | V51: 32.49792451
B52: INDX | D52: 2018-02-27 | E52: 108.4884072 | F52: 100.6365923 | G52: 111.6116051 | H52: 101.0252494 | I52: 119.1166338 | J52: 119.9730056 | L52: 2021-06-30 | M52: 48645149.97 | N52: 0 | O52: 700000 | P52: -700000 | R52: 2018-02-27 | S52: -0.6706509703 | U52: 2018-02-27 | V52: 31.93435364
B53: INPC | D53: 2018-02-28 | E53: 104.5946149 | F53: 99.49570366 | G53: 109.5807682 | H53: 101.0510255 | I53: 116.2334092 | J53: 117.0917207 | L53: 2021-07-31 | M53: 46252121.01 | N53: 0 | O53: 200000 | P53: -200000 | R53: 2018-02-28 | S53: -3.58913217 | U53: 2018-02-28 | V53: 36.37358121
B54: IPC | D54: 2018-03-01 | E54: 103.5217314 | F54: 98.57618149 | G54: 109.6118244 | H54: 101.0768083 | I54: 117.0796845 | J54: 117.9670828 | L54: 2021-08-31 | M54: 45326657.82 | N54: 0 | O54: 0 | P54: 0 | R54: 2018-03-01 | S54: -1.025754068 | U54: 2018-03-01 | V54: 36.61558394
B55: IPCA | D55: 2018-03-02 | E55: 102.4175596 | F55: 99.17347794 | G55: 110.104243 | H55: 101.1025975 | I55: 117.7593192 | J55: 118.6748433 | L55: 2021-09-30 | M55: 44397790.78 | N55: 780000 | O55: 0 | P55: 0 | R55: 2018-03-02 | S55: -1.066608675 | U55: 2018-03-02 | V55: 35.2201959
B56: IRF-M | D56: 2018-03-05 | E56: 101.9003772 | F56: 99.53106989 | G56: 110.4399556 | H56: 101.1283934 | I56: 119.2016644 | J56: 120.1516627 | L56: 2021-10-31 | M56: 39997290.74 | N56: 0 | O56: 0 | P56: 0 | R56: 2018-03-05 | S56: -0.5049743573 | U56: 2018-03-05 | V56: 34.95648602
B57: IRF-M 1 | D57: 2018-03-06 | E57: 101.4898097 | F57: 98.36398407 | G57: 109.965177 | H57: 101.1541959 | I57: 119.3001339 | J57: 120.2742011 | L57: 2021-11-30 | M57: 38407667.37 | N57: 1500000 | O57: 0 | P57: 0 | R57: 2018-03-06 | S57: -0.4029106803 | U57: 2018-03-06 | V57: 31.55016889
B58: IRF-M 1+ | D58: 2018-03-07 | E58: 101.0744784 | F58: 98.36267421 | G58: 109.7476038 | H58: 101.1800049 | I58: 118.6132912 | J58: 119.6049051 | L58: 2021-12-31 | M58: 39310962.76 | N58: 500000 | O58: 0 | P58: 0 | R58: 2018-03-07 | S58: -0.4092344407 | U58: 2018-03-07 | V58: 30.99613731
B59: ISEE | D59: 2018-03-08 | E59: 99.03521242 | F59: 98.16226554 | G59: 109.1070424 | H59: 101.2058205 | I59: 118.0473973 | J59: 119.057329 | L59: 2022-01-31 | M59: 40301102.6 | N59: 0 | O59: 0 | P59: 0 | R59: 2018-03-08 | S59: -2.017587469 | U59: 2018-03-08 | V59: 31.53381303
B60: ITAG | D60: 2018-03-09 | E60: 100.8488967 | F60: 99.33590066 | G60: 110.8874782 | H60: 101.2316428 | I60: 119.6973103 | J60: 120.7447328 | L60: 2022-02-28 | M60: 41143973.88 | N60: 1000000 | O60: 0 | P60: 0 | R60: 2018-03-09 | S60: 1.831352965 | U60: 2018-03-09 | V60: 32.15733156
B61: IVBX | D61: 2018-03-12 | E61: 101.2522848 | F61: 99.93188725 | G61: 111.5666577 | H61: 101.2574715 | I61: 120.3057195 | J61: 121.3819647 | L61: 2022-03-31 | M61: 42736343.3 | N61: 50000 | O61: 0 | P61: 0 | R61: 2018-03-12 | S61: 0.3999925808 | U61: 2018-03-12 | V61: 31.30952578
B62: LFT Acumulado | D62: 2018-03-13 | E62: 100.3758535 | F62: 100.1087184 | G62: 110.9034492 | H62: 101.2833068 | I62: 119.4545574 | J62: 120.5465252 | L62: 2022-04-30 | M62: 40023398.93 | N62: 0 | O62: 0 | P62: 0 | R62: 2018-03-13 | S62: -0.8655916392 | U62: 2018-03-13 | V62: 30.73565486
B63: MLCX | D63: 2018-03-14 | E63: 101.6596212 | F63: 100.432254 | G63: 110.4760702 | H63: 101.3091488 | I63: 118.0017055 | J63: 119.1034499 | L63: 2022-05-31 | M63: 39478199.09 | N63: 0 | O63: 0 | P63: 0 | R63: 2018-03-14 | S63: 1.278960648 | U63: 2018-03-14 | V63: 24.95117537
B64: OTNBTN | D64: 2018-03-15 | E64: 101.4633231 | F64: 98.85780153 | G64: 109.0346207 | H64: 101.3349975 | I64: 116.9593465 | J64: 118.0742171 | L64: 2022-06-30 | M64: 34301336.39 | N64: 0 | O64: 0 | P64: 0 | R64: 2018-03-15 | S64: -0.1930934366 | U64: 2018-03-15 | V64: 22.66816615
B65: PoupAcum | D65: 2018-03-16 | E65: 101.623313 | F65: 97.8806455 | G65: 108.9810715 | H65: 101.3608526 | I65: 116.8331444 | J65: 117.9696501 | R65: 2018-03-16 | S65: 0.1576825229 | U65: 2018-03-16 | V65: 22.59892077
B66: PoupAcumul Nova | D66: 2018-03-19 | E66: 100.0055436 | F66: 97.11830661 | G66: 107.7313385 | H66: 101.3867143 | I66: 115.6053305 | J66: 116.752495 | R66: 2018-03-19 | S66: -1.591927446 | U66: 2018-03-19 | V66: 22.87782262
B67: SMLL | D67: 2018-03-20 | E67: 100.4385923 | F67: 96.80524992 | G67: 108.0532498 | H67: 101.4125827 | I67: 116.2485584 | J67: 117.4248383 | R67: 2018-03-20 | S67: 0.4330246315 | U67: 2018-03-20 | V67: 22.69517972
B68: UTIL | D68: 2018-03-21 | E68: 101.7472748 | F68: 96.37299591 | G68: 109.0967459 | H68: 101.4384578 | I68: 116.447452 | J68: 117.6485204 | R68: 2018-03-21 | S68: 1.302967815 | U68: 2018-03-21 | V68: 22.97414513
D69: 2018-03-22 | E69: 101.0586951 | F69: 98.75432254 | G69: 108.8287947 | H69: 101.4633944 | I69: 116.0009187 | J69: 117.2200745 | R69: 2018-03-22 | S69: -0.6767549763 | U69: 2018-03-22 | V69: 22.38634832
D70: 2018-03-23 | E70: 100.266151 | F70: 97.44446191 | G70: 108.3272094 | H70: 101.4883371 | I70: 115.8511376 | J70: 117.0913873 | R70: 2018-03-23 | S70: -0.7842413645 | U70: 2018-03-23 | V70: 21.0348388
D71: 2018-03-26 | E71: 100.3470249 | F71: 98.32337839 | G71: 109.2395993 | H71: 101.5132859 | I71: 116.7339419 | J71: 118.0064877 | R71: 2018-03-26 | S71: 0.08065921647 | U71: 2018-03-26 | V71: 18.97927605
D72: 2018-03-27 | E72: 98.2088291 | F72: 98.20549094 | G72: 107.5965348 | H72: 101.5382408 | I72: 115.4065591 | J72: 116.6872246 | R72: 2018-03-27 | S72: -2.130801357 | U72: 2018-03-27 | V72: 19.89385156
D73: 2018-03-28 | E73: 99.54759043 | F73: 97.11437703 | G73: 107.6813713 | H73: 101.563202 | I73: 116.304879 | J73: 117.6182832 | R73: 2018-03-28 | S73: 1.363178185 | U73: 2018-03-28 | V73: 17.24964666
D74: 2018-03-29 | E74: 101.1601526 | F74: 98.61809703 | G74: 109.596123 | H74: 101.5881691 | I74: 118.2477569 | J74: 119.6062565 | R74: 2018-03-29 | S74: 1.619890685 | U74: 2018-03-29 | V74: 17.96310054
D75: 2018-03-30 | P75: =IF(O75="","",O75*(-1)) ->  | R75: 2018-03-30 | U75: 2018-03-30
D76: 2018-04-02 | E76: 101.3783619 | F76: 97.27156031 | G76: 108.6985615 | H76: 101.6131426 | I76: 117.0065044 | J76: 118.37366 | R76: 2018-04-02 | S76: 0.2157067789 | U76: 2018-04-02 | V76: 17.81968303
D77: 2018-04-03 | E77: 101.4525361 | F77: 96.08351671 | G77: 108.6433818 | H77: 101.6381221 | I77: 116.7892851 | J77: 118.1767809 | R77: 2018-04-03 | S77: 0.07316572974 | U77: 2018-04-03 | V77: 17.39529238
D78: 2018-04-04 | E78: 100.8235017 | F78: 94.82474065 | G78: 108.3047421 | H78: 101.6631077 | I78: 116.5142793 | J78: 117.9213367 | R78: 2018-04-04 | S78: -0.6200282669 | U78: 2018-04-04 | V78: 17.10206066
D79: 2018-04-05 | E79: 101.6642284 | F79: 95.57660065 | G79: 109.3959716 | H79: 101.6880996 | I79: 117.4428975 | J79: 118.8841843 | R79: 2018-04-05 | S79: 0.8338598387 | U79: 2018-04-05 | V79: 17.28284203
D80: 2018-04-06 | E80: 100.0612843 | F80: 96.23808027 | G80: 108.8962479 | H80: 101.7130975 | I80: 117.042056 | J80: 118.5013646 | R80: 2018-04-06 | S80: -1.576704099 | U80: 2018-04-06 | V80: 18.02062448
D81: 2018-04-09 | E81: 99.23660318 | F81: 94.29817667 | G81: 106.9535469 | H81: 101.7381015 | I81: 114.30678 | J81: 115.7543937 | R81: 2018-04-09 | S81: -0.8241760648 | U81: 2018-04-09 | V81: 16.41342941
D82: 2018-04-10 | E82: 101.5619425 | F82: 94.57193755 | G82: 108.498179 | H82: 101.7631118 | I82: 114.3462411 | J82: 115.8167759 | R82: 2018-04-10 | S82: 2.34322741 | U82: 2018-04-10 | V82: 17.95059783
D83: 2018-04-11 | E83: 101.9617157 | F83: 93.63407733 | G83: 109.4421001 | H83: 101.7881281 | I83: 115.5705119 | J83: 117.0794571 | R83: 2018-04-11 | S83: 0.3936250385 | U83: 2018-04-11 | V83: 17.57808184
D84: 2018-04-12 | E84: 102.8638178 | F84: 94.45012051 | G84: 109.6962244 | H84: 101.8131505 | I84: 115.6908499 | J84: 117.22406 | R84: 2018-04-12 | S84: 0.8847459394 | U84: 2018-04-12 | V84: 17.75894251
D85: 2018-04-13 | E85: 102.9935728 | F85: 93.49916169 | G85: 108.2722865 | H85: 101.8381792 | I85: 113.1174499 | J85: 114.6387489 | R85: 2018-04-13 | S85: 0.1261424992 | U85: 2018-04-13 | V85: 17.45715292
D86: 2018-04-16 | E86: 102.1402063 | F86: 91.63130043 | G86: 106.3814015 | H86: 101.863214 | I86: 110.5450272 | J86: 112.0534228 | R86: 2018-04-16 | S86: -0.8285628798 | U86: 2018-04-16 | V86: 18.06793663
D87: 2018-04-17 | E87: 104.0182268 | F87: 92.56654092 | G87: 107.9535336 | H87: 101.888255 | I87: 112.1749042 | J87: 113.7275565 | R87: 2018-04-17 | S87: 1.838669185 | U87: 2018-04-17 | V87: 18.64923613
D88: 2018-04-18 | E88: 106.4309902 | F88: 93.29089385 | G88: 110.1236548 | H88: 101.9133021 | I88: 114.771761 | J88: 116.3828882 | R88: 2018-04-18 | S88: 2.319558324 | U88: 2018-04-18 | V88: 19.59718642
D89: 2018-04-19 | E89: 107.2891932 | F89: 92.88876663 | G89: 110.1850226 | H89: 101.9383555 | I89: 114.1223025 | J89: 115.7467206 | R89: 2018-04-19 | S89: 0.8063469122 | U89: 2018-04-19 | V89: 18.63683948
D90: 2018-04-20 | E90: 107.9108371 | F90: 92.67001991 | G90: 109.8330309 | H90: 101.9634149 | I90: 113.2210505 | J90: 114.8548753 | R90: 2018-04-20 | S90: 0.5794095216 | U90: 2018-04-20 | V90: 18.65312884
D91: 2018-04-23 | E91: 107.6506719 | F91: 92.60976632 | G91: 109.9003172 | H91: 101.9884804 | I91: 113.0221568 | J91: 114.6753118 | R91: 2018-04-23 | S91: -0.2410927256 | U91: 2018-04-23 | V91: 18.61202013
D92: 2018-04-24 | E92: 108.307108 | F92: 91.74918789 | G92: 109.7290266 | H92: 102.0135522 | I92: 112.5974921 | J92: 114.2665568 | R92: 2018-04-24 | S92: 0.6097835539 | U92: 2018-04-24 | V92: 18.18353697
D93: 2018-04-25 | E93: 107.0651586 | F93: 91.46101855 | G93: 109.1837906 | H93: 102.0386301 | I93: 112.8435435 | J93: 114.5384294 | R93: 2018-04-25 | S93: -1.146692368 | U93: 2018-04-25 | V93: 18.46335782
D94: 2018-04-26 | E94: 109.5033533 | F94: 93.04464005 | G94: 110.9026147 | H94: 102.0637142 | I94: 114.5551527 | J94: 116.298261 | R94: 2018-04-26 | S94: 2.277299811 | U94: 2018-04-26 | V94: 19.53491098
D95: 2018-04-27 | E95: 109.1479847 | F95: 93.41533061 | G95: 110.9815198 | H95: 102.0888044 | I95: 114.7242367 | J95: 116.49247 | R95: 2018-04-27 | S95: -0.3245275641 | U95: 2018-04-27 | V95: 17.64413147
D96: 2018-04-30 | E96: 109.0626847 | F96: 93.07738657 | G96: 110.5589295 | H96: 102.1139009 | I96: 113.3725419 | J96: 115.1422325 | R96: 2018-04-30 | S96: -0.07815076779 | U96: 2018-04-30 | V96: 17.37049249
D97: 2018-05-01 | R97: 2018-05-01 | U97: 2018-05-01
D98: 2018-05-02 | E98: 108.6322778 | F98: 91.03793356 | G98: 108.5453346 | H98: 102.1390034 | I98: 110.0261689 | J98: 111.7652612 | R98: 2018-05-02 | S98: -0.3946418307 | U98: 2018-05-02 | V98: 17.55253213
D99: 2018-05-03 | E99: 107.4946688 | F99: 89.25914283 | G99: 106.9290383 | H99: 102.1641122 | I99: 107.5794597 | J99: 109.3010388 | R99: 2018-05-03 | S99: -1.047210844 | U99: 2018-05-03 | V99: 18.15197304
D100: 2018-05-04 | E100: 107.5113917 | F100: 88.84522687 | G100: 106.7106435 | H100: 102.1892271 | I100: 106.5564037 | J100: 108.2825737 | R100: 2018-05-04 | S100: 0.01555695653 | U100: 2018-05-04 | V100: 17.89994151
D101: 2018-05-07 | E101: 106.3203571 | F101: 89.25783297 | G101: 106.1924837 | H101: 102.2143483 | I101: 106.2733346 | J101: 108.0158301 | R101: 2018-05-07 | S101: -1.107821697 | U101: 2018-05-07 | V101: 17.69487871
D102: 2018-05-08 | E102: 106.118248 | F102: 88.59504349 | G102: 106.5026863 | H102: 102.2394755 | I102: 106.840328 | J102: 108.6131469 | R102: 2018-05-08 | S102: -0.1900945221 | U102: 2018-05-08 | V102: 17.34888382
D103: 2018-05-09 | E103: 107.6250337 | F103: 89.04956513 | G103: 108.1838039 | H103: 102.264609 | I103: 107.814638 | J103: 109.6248464 | R103: 2018-05-09 | S103: 1.419911993 | U103: 2018-05-09 | V103: 17.28380685
D104: 2018-05-10 | E104: 110.628611 | F104: 91.48066646 | G104: 110.2324478 | H104: 102.2897485 | I104: 109.616409 | J104: 111.4784505 | R104: 2018-05-10 | S104: 2.790779401 | U104: 2018-05-10 | V104: 17.91969733
D105: 2018-05-11 | E105: 111.4226907 | F105: 89.4595515 | G105: 109.4095547 | H105: 102.3148944 | I105: 107.8033983 | J105: 109.6558711 | R105: 2018-05-11 | S105: 0.7177887392 | U105: 2018-05-11 | V105: 17.94971665
D106: 2018-05-14 | E106: 112.7922566 | F106: 87.62574662 | G106: 109.4248838 | H106: 102.3400464 | I106: 106.0971647 | J106: 107.9412145 | R106: 2018-05-14 | S106: 1.229162453 | U106: 2018-05-14 | V106: 18.50238734
D107: 2018-05-15 | E107: 114.3018462 | F107: 87.340197 | G107: 109.2942397 | H107: 102.3652046 | I107: 104.7198141 | J107: 106.5605539 | R107: 2018-05-15 | S107: 1.338380537 | U107: 2018-05-15 | V107: 18.2972257
D108: 2018-05-16 | E108: 117.122918 | F108: 88.32259248 | G108: 111.1000315 | H108: 102.390369 | I108: 106.2164031 | J108: 108.1043779 | R108: 2018-05-16 | S108: 2.468089486 | U108: 2018-05-16 | V108: 18.78218241
D109: 2018-05-17 | E109: 114.9351283 | F109: 85.41470188 | G109: 107.3575985 | H109: 102.4155395 | I109: 101.6237685 | J109: 103.4501374 | R109: 2018-05-17 | S109: -1.867943277 | U109: 2018-05-17 | V109: 20.14311377
D110: 2018-05-18 | E110: 113.2684579 | F110: 85.65309651 | G110: 106.6642325 | H110: 102.4407163 | I110: 101.3603689 | J110: 103.2019831 | R110: 2018-05-18 | S110: -1.450096638 | U110: 2018-05-18 | V110: 20.07522835
D111: 2018-05-21 | E111: 110.7334815 | F111: 85.75919522 | G111: 105.0381661 | H111: 102.4658994 | I111: 100.1083653 | J111: 101.9469681 | R111: 2018-05-21 | S111: -2.238025017 | U111: 2018-05-21 | V111: 22.23613693
D112: 2018-05-22 | E112: 110.9734519 | F112: 88.77449439 | G112: 106.2238738 | H112: 102.4910885 | I112: 103.1230453 | J112: 105.0373506 | R112: 2018-05-22 | S112: 0.216709883 | U112: 2018-05-22 | V112: 21.70225771
D113: 2018-05-23 | E113: 109.8899787 | F113: 87.16991512 | G113: 103.8210428 | H113: 102.5162838 | I113: 100.7382765 | J113: 102.6281807 | R113: 2018-05-23 | S113: -0.9763354488 | U113: 2018-05-23 | V113: 21.99758036
D114: 2018-05-24 | E114: 112.3932006 | F114: 88.09860631 | G114: 102.8646042 | H114: 102.5414853 | I114: 100.8725419 | J114: 102.7848635 | R114: 2018-05-24 | S114: 2.277934623 | U114: 2018-05-24 | V114: 23.12839085
D115: 2018-05-25 | E115: 110.9268241 | F115: 87.27077439 | G115: 101.2923438 | H115: 102.566693 | I115: 99.23667853 | J115: 101.1375672 | R115: 2018-05-25 | S115: -1.304684359 | U115: 2018-05-25 | V115: 23.24476834
D116: 2018-05-28 | E116: 107.3101006 | F116: 83.12506549 | G116: 96.74519688 | H116: 102.591907 | I116: 95.38134309 | J116: 97.22720496 | R116: 2018-05-28 | S116: -3.260458865 | U116: 2018-05-28 | V116: 25.42204165
D117: 2018-05-29 | E117: 106.5216378 | F117: 83.39882637 | G117: 97.6645966 | H117: 102.617127 | I117: 95.34273721 | J117: 97.20667049 | R117: 2018-05-29 | S117: -0.7347517277 | U117: 2018-05-29 | V117: 24.90725921
D118: 2018-05-30 | E118: 106.8827629 | F118: 84.44933459 | G118: 98.53971651 | H118: 102.6423534 | I118: 96.90334356 | J118: 98.81691669 | R118: 2018-05-30 | S118: 0.3390157342 | U118: 2018-05-30 | V118: 24.95462401
D119: 2018-05-31 | R119: 2018-05-31 | U119: 2018-05-31
D120: 2018-06-01 | E120: 109.3474034 | F120: 85.41601174 | G120: 99.16384478 | H120: 102.667586 | I120: 98.78757966 | J120: 100.7578673 | R120: 2018-06-01 | S120: 2.305928876 | U120: 2018-06-01 | V120: 25.61537191
D121: 2018-06-04 | E121: 109.4149958 | F121: 86.5948863 | G121: 100.9051362 | H121: 102.6928246 | I121: 100.4163572 | J121: 102.4389617 | R121: 2018-06-04 | S121: 0.06181439367 | U121: 2018-06-04 | V121: 26.53245767
D122: 2018-06-05 | E122: 108.8749052 | F122: 83.47872786 | G122: 98.39606712 | H122: 102.7180695 | I122: 96.3671371 | J122: 98.32721697 | R122: 2018-06-05 | S122: -0.4936166306 | U122: 2018-06-05 | V122: 25.96782457
D123: 2018-06-06 | E123: 111.5655329 | F123: 81.85188096 | G123: 97.72269057 | H123: 102.7433207 | I123: 94.15096368 | J123: 96.08456852 | R123: 2018-06-06 | S123: 2.471301998 | U123: 2018-06-06 | V123: 26.56455181
D124: 2018-06-07 | E124: 107.9286412 | F124: 78.51173635 | G124: 94.81380657 | H124: 102.768578 | I124: 90.75608898 | J124: 92.63790637 | R124: 2018-06-07 | S124: -3.259870364 | U124: 2018-06-07 | V124: 28.69207812
D125: 2018-06-08 | E125: 104.5679958 | F125: 79.94603374 | G125: 93.64629102 | H125: 102.7938415 | I125: 91.54457758 | J125: 93.46083756 | R125: 2018-06-08 | S125: -3.113766084 | U125: 2018-06-08 | V125: 30.61836501
D126: 2018-06-11 | E126: 102.8153297 | F126: 79.0723567 | G126: 92.83194832 | H126: 102.8191113 | I126: 89.33341315 | J126: 91.22104761 | R126: 2018-06-11 | S126: -1.676101832 | U126: 2018-06-11 | V126: 30.01325308
D127: 2018-06-12 | E127: 103.3616613 | F127: 78.77763806 | G127: 93.40500525 | H127: 102.8443872 | I127: 89.79179698 | J127: 91.706871 | R127: 2018-06-12 | S127: 0.5313717265 | U127: 2018-06-12 | V127: 29.45889268
D128: 2018-06-13 | E128: 102.3542861 | F128: 78.26024311 | G128: 92.59362823 | H128: 102.8696693 | I128: 88.40650534 | J128: 90.30951723 | R128: 2018-06-13 | S128: -0.9746120331 | U128: 2018-06-13 | V128: 28.85492975
D129: 2018-06-14 | E129: 101.6494997 | F129: 76.64518495 | G129: 91.69371727 | H129: 102.8949578 | I129: 85.95185504 | J129: 87.81903002 | R129: 2018-06-14 | S129: -0.6885753546 | U129: 2018-06-14 | V129: 28.32256974
D130: 2018-06-15 | E130: 99.31437855 | F130: 76.51550875 | G130: 90.84193766 | H130: 102.9202524 | I130: 86.08721999 | J130: 87.97436679 | R130: 2018-06-15 | S130: -2.297228375 | U130: 2018-06-15 | V130: 28.23588151
D131: 2018-06-18 | E131: 98.66229232 | F131: 75.46107094 | G131: 89.63128493 | H131: 102.9455532 | I131: 84.06480902 | J131: 85.92425622 | R131: 2018-06-18 | S131: -0.656587936 | U131: 2018-06-18 | V131: 26.99887856
D132: 2018-06-19 | E132: 98.14183886 | F132: 77.51886199 | G132: 91.65924604 | H132: 102.9708602 | I132: 87.8648012 | J132: 89.82569085 | R132: 2018-06-19 | S132: -0.5275099961 | U132: 2018-06-19 | V132: 26.35385539
D133: 2018-06-20 | E133: 99.2208312 | F133: 78.21046841 | G133: 92.59525871 | H133: 102.9961735 | I133: 89.03507272 | J133: 91.03970411 | R133: 2018-06-20 | S133: 1.099421359 | U133: 2018-06-20 | V133: 26.40917946
D134: 2018-06-21 | E134: 97.05409797 | F134: 76.50895945 | G134: 89.96528997 | H134: 103.021493 | I134: 86.54242738 | J134: 88.50807122 | R134: 2018-06-21 | S134: -2.183748317 | U134: 2018-06-21 | V134: 26.36978732
D135: 2018-06-22 | E135: 98.10036293 | F135: 77.01456565 | G135: 90.69162512 | H135: 103.0468188 | I135: 87.34068963 | J135: 89.34176039 | R135: 2018-06-22 | S135: 1.078022441 | U135: 2018-06-22 | V135: 26.82102851
D136: 2018-06-25 | E136: 98.16035743 | F136: 78.00874987 | G136: 91.0925955 | H136: 103.0721507 | I136: 88.00444212 | J136: 90.03815094 | R136: 2018-06-25 | S136: 0.06115624474 | U136: 2018-06-25 | V136: 26.20034371
D137: 2018-06-26 | E137: 99.79057359 | F137: 80.67038667 | G137: 91.67240545 | H137: 103.0974888 | I137: 88.33051527 | J137: 90.38925809 | R137: 2018-06-26 | S137: 1.660768369 | U137: 2018-06-26 | V137: 26.68451035
D138: 2018-06-27 | E138: 98.89246945 | F138: 79.06842712 | G138: 90.65100428 | H138: 103.1228332 | I138: 86.81816627 | J138: 88.85886283 | R138: 2018-06-27 | S138: -0.8999889627 | U138: 2018-06-27 | V138: 26.10456579
D139: 2018-06-28 | E139: 100.6721244 | F139: 79.19679346 | G139: 92.13708021 | H139: 103.1481839 | I139: 89.14905782 | J139: 91.26221067 | P139: =IF(O139="","",O139*(-1)) ->  | R139: 2018-06-28 | S139: 1.799585977 | U139: 2018-06-28 | V139: 25.28755334
D140: 2018-06-29 | E140: 102.0122906 | F140: 80.27742848 | G140: 93.4157767 | H140: 103.1735408 | I140: 90.40057273 | J140: 92.5613102 | R140: 2018-06-29 | S140: 1.331218711 | U140: 2018-06-29 | V140: 25.78275389
D141: 2018-07-02 | E141: 99.73708312 | F141: 79.79016033 | G141: 93.51491519 | H141: 103.1989038 | I141: 90.69023906 | J141: 92.87588021 | R141: 2018-07-02 | S141: -2.230326832 | U141: 2018-07-02 | V141: 25.60396155
D142: 2018-07-03 | E142: 99.62245357 | F142: 80.95593629 | G142: 94.5779643 | H142: 103.2242731 | I142: 92.63678213 | J142: 94.88770469 | R142: 2018-07-03 | S142: -0.1149317315 | U142: 2018-07-03 | V142: 25.03808481
D143: 2018-07-04 | E143: 99.5809282 | F143: 82.84475532 | G143: 95.95855955 | H143: 103.2496487 | I143: 93.8416279 | J143: 96.14043836 | R143: 2018-07-04 | S143: -0.04168274372 | U143: 2018-07-04 | V143: 25.01744497
D144: 2018-07-05 | E144: 101.7084206 | F144: 82.86178351 | G144: 95.71455202 | H144: 103.2750305 | I144: 93.31275167 | J144: 95.61711722 | R144: 2018-07-05 | S144: 2.136445698 | U144: 2018-07-05 | V144: 26.38741891
D145: 2018-07-06 | E145: 103.3280929 | F145: 83.45253065 | G145: 96.30169272 | H145: 103.3004186 | I145: 93.97357207 | J145: 96.31290214 | R145: 2018-07-06 | S145: 1.592466273 | U145: 2018-07-06 | V145: 25.49761664
D146: 2018-07-09 | H146: 103.3258129 | R146: 2018-07-09 | U146: 2018-07-09
D147: 2018-07-10 | E147: 103.5459147 | F147: 83.46562926 | G147: 96.11167087 | H147: 103.3512135 | I147: 94.40483404 | J147: 96.77363442 | R147: 2018-07-10 | S147: 0.2108058892 | U147: 2018-07-10 | V147: 21.47735871
D148: 2018-07-11 | E148: 102.5118021 | F148: 82.94037514 | G148: 95.51618517 | H148: 103.3766202 | I148: 94.60727061 | J148: 96.99992903 | R148: 2018-07-11 | S148: -0.9986994878 | U148: 2018-07-11 | V148: 20.96621274
D149: 2018-07-12 | E149: 104.9412229 | F149: 84.79120821 | G149: 97.38761994 | H149: 103.4020331 | I149: 96.63151413 | J149: 99.09455055 | R149: 2018-07-12 | S149: 2.369893767 | U149: 2018-07-12 | V149: 22.37813181
D150: 2018-07-13 | E150: 105.1709515 | F150: 86.54904118 | G150: 98.33526424 | H150: 103.4274523 | I150: 98.872366 | J150: 101.4121521 | R150: 2018-07-13 | S150: 0.2189116298 | U150: 2018-07-13 | V150: 22.06688194
D151: 2018-07-16 | E151: 105.437415 | F151: 85.53127947 | G151: 98.41002251 | H151: 103.4528778 | I151: 99.07040443 | J151: 101.6349534 | R151: 2018-07-16 | S151: 0.2533623012 | U151: 2018-07-16 | V151: 20.49156638
D152: 2018-07-17 | E152: 108.0792296 | F152: 86.35125223 | G152: 100.3071727 | H152: 103.4783096 | I152: 101.3678213 | J152: 104.0119775 | R152: 2018-07-17 | S152: 2.505575975 | U152: 2018-07-17 | V152: 21.30730471
D153: 2018-07-18 | E153: 109.4416762 | F153: 85.68453317 | G153: 99.32161645 | H153: 103.5037476 | I153: 99.77080808 | J153: 102.3931292 | R153: 2018-07-18 | S153: 1.26059986 | U153: 2018-07-18 | V153: 21.14384171
D154: 2018-07-19 | E154: 107.4236742 | F154: 86.45735094 | G154: 99.48106997 | H154: 103.5291918 | I154: 100.1534462 | J154: 102.8057268 | R154: 2018-07-19 | S154: -1.843906301 | U154: 2018-07-19 | V154: 22.36164207
D155: 2018-07-20 | E155: 106.7337448 | F155: 88.05669077 | G155: 100.8733354 | H155: 103.5546424 | I155: 102.8712518 | J155: 105.6159523 | R155: 2018-07-20 | S155: -0.6422508404 | U155: 2018-07-20 | V155: 22.51442227
D156: 2018-07-23 | E156: 108.4645718 | F156: 86.72718223 | G156: 100.1349064 | H156: 103.5800992 | I156: 101.6001896 | J156: 104.3311748 | R156: 2018-07-23 | S156: 1.621630621 | U156: 2018-07-23 | V156: 21.38587111
D157: 2018-07-24 | E157: 111.0382376 | F157: 88.33045164 | G157: 101.6227155 | H157: 103.6055622 | I157: 102.2406075 | J157: 105.009136 | R157: 2018-07-24 | S157: 2.372816905 | U157: 2018-07-24 | V157: 21.78056451
D158: 2018-07-25 | E158: 111.4611217 | F158: 88.36188829 | G158: 102.9875195 | H158: 103.6310316 | I158: 104.4550706 | J158: 107.3043369 | R158: 2018-07-25 | S158: 0.3808454814 | U158: 2018-07-25 | V158: 21.71422771
D159: 2018-07-26 | E159: 112.0474231 | F159: 86.67871738 | G159: 101.944126 | H159: 103.6565072 | I159: 102.2806795 | J159: 105.0909789 | R159: 2018-07-26 | S159: 0.5260142692 | U159: 2018-07-26 | V159: 21.39709827
D160: 2018-07-27 | E160: 112.3742867 | F160: 86.56213979 | G160: 102.5356832 | H160: 103.681989 | I160: 102.7406515 | J160: 105.5840296 | R160: 2018-07-27 | S160: 0.2917190352 | U160: 2018-07-27 | V160: 20.79430804
D161: 2018-07-30 | E161: 113.7396531 | F161: 86.08404066 | G161: 103.0614047 | H161: 103.7074771 | I161: 103.6230893 | J161: 106.5115089 | R161: 2018-07-30 | S161: 1.215016674 | U161: 2018-07-30 | V161: 20.82501476
D162: 2018-07-31 | E162: 113.8805484 | F162: 85.21822278 | G162: 101.7067432 | H162: 103.7329715 | I162: 101.1084532 | J162: 103.9469026 | R162: 2018-07-31 | S162: 0.1238753233 | U162: 2018-07-31 | V162: 20.37274129
D163: 2018-08-01 | E163: 111.285711 | F163: 87.05988683 | G163: 101.8110042 | H163: 103.7584722 | I163: 102.1989474 | J163: 105.0883549 | R163: 2018-08-01 | S163: -2.278560714 | U163: 2018-08-01 | V163: 21.99293785
D164: 2018-08-02 | E164: 110.5122132 | F164: 86.65906947 | G164: 102.2411435 | H164: 103.7839791 | I164: 102.7424841 | J164: 105.6677152 | R164: 2018-08-02 | S164: -0.6950557971 | U164: 2018-08-02 | V164: 20.38638384
D165: 2018-08-03 | E165: 113.0314462 | F165: 88.41690244 | G165: 104.5498686 | H165: 103.8094923 | I165: 105.5599808 | J165: 108.5864519 | R165: 2018-08-03 | S165: 2.279596902 | U165: 2018-08-03 | V165: 21.10494666
D166: 2018-08-06 | E166: 113.3467076 | F166: 88.01739495 | G166: 104.0565898 | H166: 103.8350118 | I166: 104.6318513 | J166: 107.6525531 | R166: 2018-08-06 | S166: 0.2789148399 | U166: 2018-08-06 | V166: 20.98889273
D167: 2018-08-07 | E167: 113.7418201 | F167: 86.2058577 | G167: 103.1524678 | H167: 103.8605375 | I167: 103.1379501 | J167: 106.1360704 | R167: 2018-08-07 | S167: 0.3485874529 | U167: 2018-08-07 | V167: 20.4867337
D168: 2018-08-08 | E168: 112.6876946 | F168: 85.27716651 | G168: 101.6184917 | H168: 103.8860694 | I168: 101.4986659 | J168: 104.4693584 | R168: 2018-08-08 | S168: -0.9267703021 | U168: 2018-08-08 | V168: 20.53542265
D169: 2018-08-09 | E169: 111.3619998 | F169: 84.47946138 | G169: 101.1258676 | H169: 103.9116077 | I169: 101.2407639 | J169: 104.2240851 | R169: 2018-08-09 | S169: -1.176432679 | U169: 2018-08-09 | V169: 20.72317916
D170: 2018-08-10 | E170: 109.2228378 | F170: 82.2762758 | G170: 98.23255666 | H170: 103.9371522 | I170: 97.46373979 | J170: 100.3551892 | R170: 2018-08-10 | S170: -1.920908382 | U170: 2018-08-10 | V170: 21.98453467
D171: 2018-08-13 | E171: 110.793493 | F171: 82.94954417 | G171: 99.49342055 | H171: 103.962703 | I171: 98.35082001 | J171: 101.2881951 | R171: 2018-08-13 | S171: 1.438028169 | U171: 2018-08-13 | V171: 21.78716636
D172: 2018-08-14 | E172: 111.7947125 | F172: 84.66153201 | G172: 100.9129163 | H172: 103.98826 | I172: 100.5768892 | J172: 103.6008052 | R172: 2018-08-14 | S172: 0.9036808296 | U172: 2018-08-14 | V172: 21.39501847
D173: 2018-08-15 | E173: 108.6667326 | F173: 83.45253065 | G173: 98.95554097 | H173: 104.0138233 | I173: 99.93085148 | J173: 102.9552752 | R173: 2018-08-15 | S173: -2.797967674 | U173: 2018-08-15 | V173: 23.22858977
D174: 2018-08-16 | E174: 107.9806503 | F174: 83.20889657 | G174: 98.62330764 | H174: 104.0393929 | I174: 99.96249365 | J174: 103.0078167 | R174: 2018-08-16 | S174: -0.631363729 | U174: 2018-08-16 | V174: 23.35911417
D175: 2018-08-17 | E175: 108.6603505 | F175: 81.91475427 | G175: 97.6088007 | H175: 104.0649689 | I175: 97.67851558 | J175: 100.6737477 | R175: 2018-08-17 | S175: 0.6294648074 | U175: 2018-08-17 | V175: 22.03252523
D176: 2018-08-20 | E176: 109.9609108 | F176: 82.13743058 | G176: 97.99315814 | H176: 104.0905512 | I176: 97.5673404 | J176: 100.5786348 | R176: 2018-08-20 | S176: 1.19690427 | U176: 2018-08-20 | V176: 21.8712673
D177: 2018-08-21 | E177: 110.1163532 | F177: 80.50796395 | G177: 96.51995916 | H177: 104.1161398 | I177: 95.63924508 | J177: 98.61012143 | R177: 2018-08-21 | S177: 0.1413614689 | U177: 2018-08-21 | V177: 21.36841242
D178: 2018-08-22 | E178: 112.8148194 | F178: 81.80996542 | G178: 98.73062422 | H178: 104.1417346 | I178: 97.53459869 | J178: 100.5838234 | R178: 2018-08-22 | S178: 2.450559021 | U178: 2018-08-22 | V178: 22.16298846
D179: 2018-08-23 | E179: 112.7909655 | F179: 80.11238604 | G179: 97.10201584 | H179: 104.1673357 | I179: 94.42108272 | J179: 97.39182396 | R179: 2018-08-23 | S179: -0.02114434747 | U179: 2018-08-23 | V179: 21.68385688
D180: 2018-08-24 | E180: 113.329129 | F180: 80.39531594 | G180: 97.90887373 | H180: 104.192943 | I180: 94.9588774 | J180: 97.96550454 | R180: 2018-08-24 | S180: 0.4771335383 | U180: 2018-08-24 | V180: 20.43813794
D181: 2018-08-27 | E181: 115.7510718 | F181: 82.38237451 | G181: 100.0496206 | H181: 104.2185566 | I181: 97.64785078 | J181: 100.7591236 | R181: 2018-08-27 | S181: 2.137087604 | U181: 2018-08-27 | V181: 22.41135803
D182: 2018-08-28 | E182: 116.3720079 | F182: 81.99465577 | G182: 99.46353265 | H182: 104.2441767 | I182: 97.09331874 | J182: 100.2063222 | R182: 2018-08-28 | S182: 0.5364409564 | U182: 2018-08-28 | V182: 21.9348145
D183: 2018-08-29 | E183: 117.2786259 | F183: 82.45441685 | G183: 100.6390979 | H183: 104.269803 | I183: 98.8048057 | J183: 101.9924278 | R183: 2018-08-29 | S183: 0.7790687605 | U183: 2018-08-29 | V183: 21.54550549
D184: 2018-08-30 | E184: 116.7452818 | F184: 81.18254218 | G184: 98.09099994 | H184: 104.2954357 | I184: 95.44951425 | J184: 98.54796677 | R184: 2018-08-30 | S184: -0.4547666236 | U184: 2018-08-30 | V184: 21.35314281
D185: 2018-08-31 | E185: 116.4317094 | F185: 81.00047155 | G185: 98.4420416 | H185: 104.3210745 | I185: 96.32388874 | J185: 99.46998163 | R185: 2018-08-31 | S185: -0.2685953925 | U185: 2018-08-31 | V185: 21.38887238
D186: 2018-09-03 | E186: 116.5119757 | F186: 80.48569632 | G186: 97.81964652 | H186: 104.3467196 | I186: 95.09314281 | J186: 98.21805189 | R186: 2018-09-03 | S186: 0.06893856044 | U186: 2018-09-03 | V186: 19.17966805
D187: 2018-09-04 | E187: 112.908536 | F187: 79.28848371 | G187: 95.91834953 | H187: 104.3723712 | I187: 93.59643164 | J187: 96.69087514 | R187: 2018-09-04 | S187: -3.092763419 | U187: 2018-09-04 | V187: 21.66106908
D188: 2018-09-05 | E188: 113.6228455 | F188: 79.15094834 | G188: 96.40681393 | H188: 104.3980291 | I188: 94.6541841 | J188: 97.80253242 | R188: 2018-09-05 | S188: 0.6326444189 | U188: 2018-09-05 | V188: 21.28463389
D189: 2018-09-06 | E189: 117.0327278 | F189: 80.20931573 | G189: 98.10630337 | H189: 104.4236932 | I189: 96.43543043 | J189: 99.66231976 | R189: 2018-09-06 | S189: 3.001053432 | U189: 2018-09-06 | V189: 23.30734964
D190: 2018-09-07 | R190: 2018-09-07 | U190: 2018-09-07
D191: 2018-09-10 | E191: 116.679056 | F191: 80.21324531 | G191: 98.13241677 | H191: 104.4493636 | I191: 96.62711599 | J191: 99.87975546 | R191: 2018-09-10 | S191: -0.3021990564 | U191: 2018-09-10 | V191: 22.94585346
D192: 2018-09-11 | E192: 115.3614972 | F192: 77.96814419 | G192: 95.84736576 | H192: 104.4750402 | I192: 93.43357833 | J192: 96.59741826 | R192: 2018-09-11 | S192: -1.12921622 | U192: 2018-09-11 | V192: 22.93460463
D193: 2018-09-12 | E193: 116.2085071 | F193: 78.67153935 | G193: 96.44859024 | H193: 104.5007233 | I193: 93.6940459 | J193: 96.88546211 | R193: 2018-09-12 | S193: 0.7342223529 | U193: 2018-09-12 | V193: 22.46139746
D194: 2018-09-13 | E194: 116.1702098 | F194: 77.64984806 | G194: 95.88609935 | H194: 104.5264127 | I194: 93.407556 | J194: 96.60791639 | R194: 2018-09-13 | S194: -0.03295566394 | U194: 2018-09-13 | V194: 22.12453719
D195: 2018-09-14 | E195: 118.68885 | F195: 77.78869328 | G195: 96.83925134 | H195: 104.5521083 | I195: 94.49939403 | J195: 97.75608823 | R195: 2018-09-14 | S195: 2.168060326 | U195: 2018-09-14 | V195: 22.93403005
D196: 2018-09-17 | E196: 118.2864572 | F196: 79.2819344 | G196: 98.58497203 | H196: 104.5778102 | I196: 96.66792095 | J196: 100.0187111 | R196: 2018-09-17 | S196: -0.3390316648 | U196: 2018-09-17 | V196: 21.06296615
D197: 2018-09-18 | E197: 121.0361575 | F197: 80.12286493 | G197: 100.5429764 | H197: 104.6035186 | I197: 97.54999218 | J197: 100.9509009 | R197: 2018-09-18 | S197: 2.32461118 | U197: 2018-09-18 | V197: 21.50908356
D198: 2018-09-19 | E198: 122.2113465 | F198: 79.9041182 | G198: 100.356421 | H198: 104.6292332 | I198: 97.4926942 | J198: 100.911141 | R198: 2018-09-19 | S198: 0.9709404674 | U198: 2018-09-19 | V198: 21.06778561
D199: 2018-09-20 | E199: 122.9848312 | F199: 79.24001886 | G199: 100.2888394 | H199: 104.6549541 | I199: 97.13571191 | J199: 100.5611096 | R199: 2018-09-20 | S199: 0.6329074433 | U199: 2018-09-20 | V199: 20.9492933
D200: 2018-09-21 | E200: 126.066599 | F200: 80.19097768 | G200: 101.9941318 | H200: 104.6806814 | I200: 98.9440801 | J200: 102.4530823 | R200: 2018-09-21 | S200: 2.505811329 | U200: 2018-09-21 | V200: 21.8808022
... 983 more rows

Sheet Drawdown
D1: Planilha Auxiliar Não Modificar
B2: Ativo | C2: ='Criar Carteira'!$B$2 -> Economatica <EcoPortfolio>{"type":"F","tolerance":"0d","rebalance":null,"name":"Economatica","data":[["2017-12-29","VALE3",2736405.12016054],["2018-02-01","WEGE3",2000000.0],["2018-03-01","SANB11",449400.423391945],["2018-04-01","BRSR6",584005.120708887],["2018-05-01","CVCB3",711601.739560784],["2018-05-05","SANB11","SELL ALL"],["2018-06-01","VALE3",-200000.0],["2018-07-01","CVCB3","SELL ALL"],["2018-08-01","PRIO3",584236.22],["2018-09-01","CPFE3",12857.365519577499],["2018-10-01","BIDI4",514736.12],["2018-11-01","CSAN3",21746.581395242098],["2018-12-01","POMO4",28282.0246727596],["2019-01-01","SBSP3",36781.54763974],["2019-02-01","QUAL3",47835.4100326317],["2019-03-01","PETR4",500000.0],["2019-04-01","SANB11","SELL ALL"],["2019-05-01","ITSA4",1177970.08644623],["2019-06-01","CMIG4",231454.97144607303],["2019-07-01","TAEE11",301013.529165687],["2019-08-01","CYRE3",391476.338463064],["2019-09-01","BRKM5",861120.68964325206],["2019-10-01","ODPV3",119911.04018044],["2019-11-01","MOTV3",894185.59763512],["2019-12-01","ITSA4",-250000.0],["2020-01-01","MRVE3",463440.24531704],["2020-02-01","BBSE3",118767.76325908],["2020-03-01","ENBR3",647255.87857121],["2020-05-01","EZTC3","SELL ALL"],["2020-06-01","BIDI11",1000000.0],["2020-07-01","ITUB4",400000.0],["2020-08-01","ITSA4","SELL ALL"],["2020-09-01","VALE3",500000.0],["2020-10-01","USIM5",450000.0],["2020-11-01","JHSF3",80000.0],["2020-12-01","RENT3",700000.0],["2021-01-01","PRIO3",1500000.0],["2021-02-01","LWSA3",400000.0],["2021-04-01","RENT3",-500000.0],["2021-05-01","ITUB4","SELL ALL"],["2021-06-01","VALE3",-700000.0],["2021-07-01","PETR4",-200000.0],["2021-08-01","ITSA4","SELL ALL"],["2021-09-15","TASA3",80000.0],["2021-09-25","EMBR3",700000.0],["2021-11-10","PSSA3",1500000.0],["2021-12-19","RAPT4",500000.0],["2022-02-05","VALE3",1000000.0],["2022-03-15","SLCE3",50000.0],[null,"",null],[null,"",null],[null,"",null],[null,"",null],[null,"",null],[null,"",null],[null,"",null],[null,"",null],[null,"",null],[null,"",null],[null,"",null],[null,"",null],[null,"",null],[null,"",null],[null,"",null],[null,"",null],[null,"",null],[null,"",null],[null,"",null],[null,"",null],[null,"",null],[null,"",null],[null,"",null],[null,"",null],[null,"",null],[null,"",null],[null,"",null],[null,"",null],[null,"",null],[null,"",null],[null,"",null],[null,"",null],[null,"",null],[null,"",null],[null,"",null],[null,"",null],[null,"",null],[null,"",null],[null,"",null],[null,"",null],[null,"",null],[null,"",null],[null,"",null],[null,"",null],[null,"",null],[null,"",null],[null,"",null],[null,"",null],[null,"",null],[null,"",null],[null,"",null],[null,"",null],[null,"",null],[null,"",null],[null,"",null],[null,"",null],[null,"",null],[null,"",null],[null,"",null],[null,"",null],[null,"",null],[null,"",null],[null,"",null],[null,"",null],[null,"",null],[null,"",null],[null,"",null],[null,"",null],[null,"",null],[null,"",null],[null,"",null],[null,"",null],[null,"",null],[null,"",null],[null,"",null],[null,"",null],[null,"",null],[null,"",null],[null,"",null],[null,"",null],[null,"",null],[null,"",null],[null,"",null],[null,"",null],[null,"",null],[null,"",null],[null,"",null],[null,"",null],[null,"",null],[null,"",null],[null,"",null],[null,"",null],[null,"",null],[null,"",null],[null,"",null],[null,"",null],[null,"",null],[null,"",null],[null,"",null],[null,"",null],[null,"",null],[null,"",null],[null,"",null],[null,"",null],[null,"",null],[null,"",null],[null,"",null],[null,"",null],[null,"",null],[null,"",null],[null,"",null],[null,"",null],[null,"",null],[null,"",null],[null,"",null],[null,"",null],[null,"",null],[null,"",null],[null,"",null],[null,"",null],[null,"",null],[null,"",null],[null,"",null],[null,"",null],[null,"",null],[null,"",null],[null,"",null],[null,"",null],[null,"",null],[null,"",null],[null,"",null],[null,"",null],[null,"",null],[null,"",null],[null,"",null],[null,"",null],[null,"",null],[null,"",null],[null,"",null],[null,"",null],[null,"",null],[null,"",null],[null,"",null],[null,"",null],[null,"",null]]} | D2: .
B3: Data fim | C3: =Lamina!$E$3 -> 2022-06-17
B4: Data Inicio | C4: ='Criar Carteira'!$B$4 -> 2017-12-29
B6: =_xll.ECONOMATICA($C$2,"MaxDrawdown","1Y",$C$3,$C$4,"D","ORIGINAL CURRENCY",,"true","true","Max DrawDown") -> data | C6: Max DrawDown | D6: =_xll.ECONOMATICA($C$2,"close",,$C$3,$C$4,"D",,,"false","true","Fechamento") -> Fechamento | E6: =_xll.ECONOMATICA($C$2,"close",,$C$3,$C$4,"D",,,"false","true","Base 100","def.defdef=7") -> Base 100 | F6: Max DrawDown / Calculo
C7: Economatica | D7: Economatica | E7: Economatica | F7: =C7 -> Economatica
B8: 2017-12-29
B9: 2018-01-01 | F9: =IF(B9="","",IF(C9="",F8,IF(E9="",F8,E9/MAX($E$9:E9)-1))) -> 0
B10: 2018-01-02 | C10: 0 | D10: 103.6264282 | E10: 100 | F10: =IF(B10="","",IF(C10="",F9,IF(E10="",F9,E10/MAX($E$9:E10)-1))) -> 0
B11: 2018-01-03 | C11: 0 | D11: 103.0054645 | E11: 99.40076702 | F11: =IF(B11="","",IF(C11="",F10,IF(E11="",F10,E11/MAX($E$9:E11)-1))) -> -0.00599232982
B12: 2018-01-04 | C12: 0 | D12: 103.4277198 | E12: 99.80824545 | F12: =IF(B12="","",IF(C12="",F11,IF(E12="",F11,E12/MAX($E$9:E12)-1))) -> -0.00191754554
B13: 2018-01-05 | C13: -0.5992329817 | D13: 105.0422255 | E13: 101.3662512 | F13: =IF(B13="","",IF(C13="",F12,IF(E13="",F12,E13/MAX($E$9:E13)-1))) -> 0
B14: 2018-01-08 | C14: -0.5992329817 | D14: 107.3770492 | E14: 103.6193672 | F14: =IF(B14="","",IF(C14="",F13,IF(E14="",F13,E14/MAX($E$9:E14)-1))) -> 0
B15: 2018-01-09 | C15: -0.5992329817 | D15: 106.9796324 | E15: 103.2358581 | F15: =IF(B15="","",IF(C15="",F14,IF(E15="",F14,E15/MAX($E$9:E15)-1))) -> -0.003701133488
B16: 2018-01-10 | C16: -0.5992329817 | D16: 105.4893194 | E16: 101.7976989 | F16: =IF(B16="","",IF(C16="",F15,IF(E16="",F15,E16/MAX($E$9:E16)-1))) -> -0.01758038404
B17: 2018-01-11 | C17: -1.758038399 | D17: 107.550919 | E17: 103.7871524 | F17: =IF(B17="","",IF(C17="",F16,IF(E17="",F16,E17/MAX($E$9:E17)-1))) -> 0
B18: 2018-01-12 | C18: -1.758038399 | D18: 108.1718828 | E18: 104.3863854 | F18: =IF(B18="","",IF(C18="",F17,IF(E18="",F17,E18/MAX($E$9:E18)-1))) -> 0
B19: 2018-01-15 | C19: -1.758038399 | D19: 107.9731744 | E19: 104.1946309 | F19: =IF(B19="","",IF(C19="",F18,IF(E19="",F18,E19/MAX($E$9:E19)-1))) -> -0.001836968961
B20: 2018-01-16 | C20: -1.758038399 | D20: 105.0670641 | E20: 101.3902205 | F20: =IF(B20="","",IF(C20="",F19,IF(E20="",F19,E20/MAX($E$9:E20)-1))) -> -0.02870264066
B21: 2018-01-17 | C21: -1.758038399 | D21: 107.1783408 | E21: 103.4276127 | F21: =IF(B21="","",IF(C21="",F20,IF(E21="",F20,E21/MAX($E$9:E21)-1))) -> -0.009184844998
B22: 2018-01-18 | C22: -1.758038399 | D22: 106.4580229 | E22: 102.7325024 | F22: =IF(B22="","",IF(C22="",F21,IF(E22="",F21,E22/MAX($E$9:E22)-1))) -> -0.01584385764
B23: 2018-01-19 | C23: -1.758038399 | D23: 106.5077 | E23: 102.780441 | F23: =IF(B23="","",IF(C23="",F22,IF(E23="",F22,E23/MAX($E$9:E23)-1))) -> -0.01538461537
B24: 2018-01-22 | C24: -1.758038399 | D24: 105.9364133 | E24: 102.2291467 | F24: =IF(B24="","",IF(C24="",F23,IF(E24="",F23,E24/MAX($E$9:E24)-1))) -> -0.02066590122
B25: 2018-01-23 | C25: -1.758038399 | D25: 101.5151515 | E25: 97.96260786 | F25: =IF(B25="","",IF(C25="",F24,IF(E25="",F24,E25/MAX($E$9:E25)-1))) -> -0.06153846148
B26: 2018-01-24 | C26: -1.758038399 | D26: 103.7754595 | E26: 100.1438159 | F26: =IF(B26="","",IF(C26="",F25,IF(E26="",F25,E26/MAX($E$9:E26)-1))) -> -0.04064293914
B27: 2018-01-25 | F27: =IF(B27="","",IF(C27="",F26,IF(E27="",F26,E27/MAX($E$9:E27)-1))) -> -0.04064293914
B28: 2018-01-26 | C28: -1.758038399 | D28: 102.9061103 | E28: 99.30488974 | F28: =IF(B28="","",IF(C28="",F27,IF(E28="",F27,E28/MAX($E$9:E28)-1))) -> -0.04867967847
B29: 2018-01-29 | C29: -1.758038399 | D29: 104.0486836 | E29: 100.4074784 | F29: =IF(B29="","",IF(C29="",F28,IF(E29="",F28,E29/MAX($E$9:E29)-1))) -> -0.03811710679
B30: 2018-01-30 | C30: -1.758038399 | D30: 103.0054645 | E30: 99.40076702 | F30: =IF(B30="","",IF(C30="",F29,IF(E30="",F29,E30/MAX($E$9:E30)-1))) -> -0.04776119397
B31: 2018-01-31 | C31: -1.758038399 | D31: 102.9557874 | E31: 99.35282838 | F31: =IF(B31="","",IF(C31="",F30,IF(E31="",F30,E31/MAX($E$9:E31)-1))) -> -0.04822043622
B32: 2018-02-01 | C32: -1.758038399 | D32: 103.8002981 | E32: 100.1677852 | F32: =IF(B32="","",IF(C32="",F31,IF(E32="",F31,E32/MAX($E$9:E32)-1))) -> -0.04041331801
B33: 2018-02-02 | C33: -1.758038399 | D33: 100.9885176 | E33: 97.45440358 | F33: =IF(B33="","",IF(C33="",F32,IF(E33="",F32,E33/MAX($E$9:E33)-1))) -> -0.06640695344
B34: 2018-02-05 | C34: -1.758038399 | D34: 99.87635108 | E34: 96.38115759 | F34: =IF(B34="","",IF(C34="",F33,IF(E34="",F33,E34/MAX($E$9:E34)-1))) -> -0.07668842825
B35: 2018-02-06 | C35: -1.758038399 | D35: 104.2074112 | E35: 100.5606513 | F35: =IF(B35="","",IF(C35="",F34,IF(E35="",F34,E35/MAX($E$9:E35)-1))) -> -0.03664974196
B36: 2018-02-07 | C36: -1.758038399 | D36: 102.5886512 | E36: 98.99854021 | F36: =IF(B36="","",IF(C36="",F35,IF(E36="",F35,E36/MAX($E$9:E36)-1))) -> -0.05161444368
B37: 2018-02-08 | C37: -1.758038399 | D37: 101.1909473 | E37: 97.64974921 | F37: =IF(B37="","",IF(C37="",F36,IF(E37="",F36,E37/MAX($E$9:E37)-1))) -> -0.06453558276
B38: 2018-02-09 | C38: -1.758038399 | D38: 101.2227718 | E38: 97.68046008 | F38: =IF(B38="","",IF(C38="",F37,IF(E38="",F37,E38/MAX($E$9:E38)-1))) -> -0.06424137893
B39: 2018-02-12 | F39: =IF(B39="","",IF(C39="",F38,IF(E39="",F38,E39/MAX($E$9:E39)-1))) -> -0.06424137893
B40: 2018-02-13 | F40: =IF(B40="","",IF(C40="",F39,IF(E40="",F39,E40/MAX($E$9:E40)-1))) -> -0.06424137893
B41: 2018-02-14 | C41: -1.758038399 | D41: 106.6697988 | E41: 102.9368672 | F41: =IF(B41="","",IF(C41="",F40,IF(E41="",F40,E41/MAX($E$9:E41)-1))) -> -0.0138860849
B42: 2018-02-15 | C42: -7.668842832 | D42: 109.699461 | E42: 105.8605057 | F42: =IF(B42="","",IF(C42="",F41,IF(E42="",F41,E42/MAX($E$9:E42)-1))) -> 0
B43: 2018-02-16 | C43: -7.668842832 | D43: 108.8305268 | E43: 105.0219801 | F43: =IF(B43="","",IF(C43="",F42,IF(E43="",F42,E43/MAX($E$9:E43)-1))) -> -0.007921043116
B44: 2018-02-19 | C44: -7.668842832 | D44: 109.6252061 | E44: 105.7888494 | F44: =IF(B44="","",IF(C44="",F43,IF(E44="",F43,E44/MAX($E$9:E44)-1))) -> -0.0006768940836
B45: 2018-02-20 | C45: -7.668842832 | D45: 108.2186051 | E45: 104.4314727 | F45: =IF(B45="","",IF(C45="",F44,IF(E45="",F44,E45/MAX($E$9:E45)-1))) -> -0.01349920842
B46: 2018-02-21 | C46: -7.668842832 | D46: 106.9829848 | E46: 103.2390932 | F46: =IF(B46="","",IF(C46="",F45,IF(E46="",F45,E46/MAX($E$9:E46)-1))) -> -0.02476289408
B47: 2018-02-22 | C47: -7.668842832 | D47: 108.5248163 | E47: 104.726968 | F47: =IF(B47="","",IF(C47="",F46,IF(E47="",F46,E47/MAX($E$9:E47)-1))) -> -0.01070784305
B48: 2018-02-23 | C48: -7.668842832 | D48: 110.6919741 | E48: 106.8182856 | F48: =IF(B48="","",IF(C48="",F47,IF(E48="",F47,E48/MAX($E$9:E48)-1))) -> 0
B49: 2018-02-26 | C49: -7.668842832 | D49: 113.1817157 | E49: 109.2208982 | F49: =IF(B49="","",IF(C49="",F48,IF(E49="",F48,E49/MAX($E$9:E49)-1))) -> 0
B50: 2018-02-27 | C50: -7.668842832 | D50: 112.4226614 | E50: 108.4884072 | F50: =IF(B50="","",IF(C50="",F49,IF(E50="",F49,E50/MAX($E$9:E50)-1))) -> -0.006706509669
B51: 2018-02-28 | C51: -7.668842832 | D51: 108.3876635 | E51: 104.5946149 | F51: =IF(B51="","",IF(C51="",F50,IF(E51="",F50,E51/MAX($E$9:E51)-1))) -> -0.04235712584
B52: 2018-03-01 | C52: -7.668842832 | D52: 107.2758726 | E52: 103.5217314 | F52: =IF(B52="","",IF(C52="",F51,IF(E52="",F51,E52/MAX($E$9:E52)-1))) -> -0.0521801866
B53: 2018-03-02 | C53: -7.668842832 | D53: 106.1316589 | E53: 102.4175596 | F53: =IF(B53="","",IF(C53="",F52,IF(E53="",F52,E53/MAX($E$9:E53)-1))) -> -0.06228971498
B54: 2018-03-05 | C54: -7.668842832 | D54: 105.5957212 | E54: 101.9003772 | F54: =IF(B54="","",IF(C54="",F53,IF(E54="",F53,E54/MAX($E$9:E54)-1))) -> -0.06702491143
B55: 2018-03-06 | C55: -7.668842832 | D55: 105.1702648 | E55: 101.4898097 | F55: =IF(B55="","",IF(C55="",F54,IF(E55="",F54,E55/MAX($E$9:E55)-1))) -> -0.07078396768
B56: 2018-03-07 | C56: -7.668842832 | D56: 104.7398718 | E56: 101.0744784 | F56: =IF(B56="","",IF(C56="",F55,IF(E56="",F55,E56/MAX($E$9:E56)-1))) -> -0.07458663976
B57: 2018-03-08 | C57: -7.668842832 | D57: 102.6266533 | E57: 99.03521242 | F57: =IF(B57="","",IF(C57="",F56,IF(E57="",F56,E57/MAX($E$9:E57)-1))) -> -0.09325766371
B58: 2018-03-09 | C58: -7.668842832 | D58: 104.5061096 | E58: 100.8488967 | F58: =IF(B58="","",IF(C58="",F57,IF(E58="",F57,E58/MAX($E$9:E58)-1))) -> -0.07665201108
B59: 2018-03-12 | C59: -7.668842832 | D59: 104.9241263 | E59: 101.2522848 | F59: =IF(B59="","",IF(C59="",F58,IF(E59="",F58,E59/MAX($E$9:E59)-1))) -> -0.07295868767
B60: 2018-03-13 | C60: -7.668842832 | D60: 104.0159118 | E60: 100.3758535 | F60: =IF(B60="","",IF(C60="",F59,IF(E60="",F59,E60/MAX($E$9:E60)-1))) -> -0.08098307974
B61: 2018-03-14 | C61: -7.668842832 | D61: 105.3462344 | E61: 101.6596212 | F61: =IF(B61="","",IF(C61="",F60,IF(E61="",F60,E61/MAX($E$9:E61)-1))) -> -0.06922921495
B62: 2018-03-15 | C62: -7.668842832 | D62: 105.1428177 | E62: 101.4633231 | F62: =IF(B62="","",IF(C62="",F61,IF(E62="",F61,E62/MAX($E$9:E62)-1))) -> -0.07102647228
B63: 2018-03-16 | C63: -7.668842832 | D63: 105.3086095 | E63: 101.623313 | F63: =IF(B63="","",IF(C63="",F62,IF(E63="",F62,E63/MAX($E$9:E63)-1))) -> -0.06956164337
B64: 2018-03-19 | C64: -7.668842832 | D64: 103.6321729 | E64: 100.0055436 | F64: =IF(B64="","",IF(C64="",F63,IF(E64="",F63,E64/MAX($E$9:E64)-1))) -> -0.08437354691
B65: 2018-03-20 | C65: -7.668842832 | D65: 104.0809257 | E65: 100.4385923 | F65: =IF(B65="","",IF(C65="",F64,IF(E65="",F64,E65/MAX($E$9:E65)-1))) -> -0.0804086589
B66: 2018-03-21 | C66: -7.668842832 | D66: 105.4370667 | E66: 101.7472748 | F66: =IF(B66="","",IF(C66="",F65,IF(E66="",F65,E66/MAX($E$9:E66)-1))) -> -0.06842667962
B67: 2018-03-22 | C67: -7.668842832 | D67: 104.7235161 | E67: 101.0586951 | F67: =IF(B67="","",IF(C67="",F66,IF(E67="",F66,E67/MAX($E$9:E67)-1))) -> -0.07473114846
B68: 2018-03-23 | C68: -7.668842832 | D68: 103.902231 | E68: 100.266151 | F68: =IF(B68="","",IF(C68="",F67,IF(E68="",F67,E68/MAX($E$9:E68)-1))) -> -0.08198748954
B69: 2018-03-26 | C69: -7.668842832 | D69: 103.9860377 | E69: 100.3470249 | F69: =IF(B69="","",IF(C69="",F68,IF(E69="",F68,E69/MAX($E$9:E69)-1))) -> -0.08124702785
B70: 2018-03-27 | C70: -7.668842832 | D70: 101.7703018 | E70: 98.2088291 | F70: =IF(B70="","",IF(C70="",F69,IF(E70="",F69,E70/MAX($E$9:E70)-1))) -> -0.1008238286
B71: 2018-03-28 | C71: -7.668842832 | D71: 103.1576123 | E71: 99.54759043 | F71: =IF(B71="","",IF(C71="",F70,IF(E71="",F70,E71/MAX($E$9:E71)-1))) -> -0.08856645517
B72: 2018-03-29 | C72: -7.668842832 | D72: 104.8286529 | E72: 101.1601526 | F72: =IF(B72="","",IF(C72="",F71,IF(E72="",F71,E72/MAX($E$9:E72)-1))) -> -0.07380222816
B73: 2018-03-30 | F73: =IF(B73="","",IF(C73="",F72,IF(E73="",F72,E73/MAX($E$9:E73)-1))) -> -0.07380222816
B74: 2018-04-02 | C74: -7.668842832 | D74: 105.0547754 | E74: 101.3783619 | F74: =IF(B74="","",IF(C74="",F73,IF(E74="",F73,E74/MAX($E$9:E74)-1))) -> -0.07180435675
B75: 2018-04-03 | C75: -7.668842832 | D75: 105.1316395 | E75: 101.4525361 | F75: =IF(B75="","",IF(C75="",F74,IF(E75="",F74,E75/MAX($E$9:E75)-1))) -> -0.07112523562
B76: 2018-04-04 | C76: -7.668842832 | D76: 104.4797936 | E76: 100.8235017 | F76: =IF(B76="","",IF(C76="",F75,IF(E76="",F75,E76/MAX($E$9:E76)-1))) -> -0.07688452171
B77: 2018-04-05 | C77: -7.668842832 | D77: 105.3510086 | E77: 101.6642284 | F77: =IF(B77="","",IF(C77="",F76,IF(E77="",F76,E77/MAX($E$9:E77)-1))) -> -0.06918703246
B78: 2018-04-06 | C78: -7.668842832 | D78: 103.689935 | E78: 100.0612843 | F78: =IF(B78="","",IF(C78="",F77,IF(E78="",F77,E78/MAX($E$9:E78)-1))) -> -0.0838631987
B79: 2018-04-09 | C79: -7.668842832 | D79: 102.8353474 | E79: 99.23660318 | F79: =IF(B79="","",IF(C79="",F78,IF(E79="",F78,E79/MAX($E$9:E79)-1))) -> -0.09141377891
B80: 2018-04-10 | C80: -7.668842832 | D80: 105.2450134 | E80: 101.5619425 | F80: =IF(B80="","",IF(C80="",F79,IF(E80="",F79,E80/MAX($E$9:E80)-1))) -> -0.07012353757
B81: 2018-04-11 | C81: -7.668842832 | D81: 105.6592841 | E81: 101.9617157 | F81: =IF(B81="","",IF(C81="",F80,IF(E81="",F80,E81/MAX($E$9:E81)-1))) -> -0.06646331094
B82: 2018-04-12 | C82: -7.668842832 | D82: 106.5941004 | E82: 102.8638178 | F82: =IF(B82="","",IF(C82="",F81,IF(E82="",F81,E82/MAX($E$9:E82)-1))) -> -0.05820388308
B83: 2018-04-13 | C83: -7.668842832 | D83: 106.7285608 | E83: 102.9935728 | F83: =IF(B83="","",IF(C83="",F82,IF(E83="",F82,E83/MAX($E$9:E83)-1))) -> -0.05701587784
B84: 2018-04-16 | C84: -7.668842832 | D84: 105.8442476 | E84: 102.1402063 | F84: =IF(B84="","",IF(C84="",F83,IF(E84="",F83,E84/MAX($E$9:E84)-1))) -> -0.0648290943
B85: 2018-04-17 | C85: -7.668842832 | D85: 107.7903731 | E85: 104.0182268 | F85: =IF(B85="","",IF(C85="",F84,IF(E85="",F84,E85/MAX($E$9:E85)-1))) -> -0.04763439502
B86: 2018-04-18 | C86: -7.668842832 | D86: 110.2906337 | E86: 106.4309902 | F86: =IF(B86="","",IF(C86="",F85,IF(E86="",F85,E86/MAX($E$9:E86)-1))) -> -0.02554371934
B87: 2018-04-19 | C87: -7.668842832 | D87: 111.1799588 | E87: 107.2891932 | F87: =IF(B87="","",IF(C87="",F86,IF(E87="",F86,E87/MAX($E$9:E87)-1))) -> -0.01768622124
B88: 2018-04-20 | C88: -7.668842832 | D88: 111.8241461 | E88: 107.9108371 | F88: =IF(B88="","",IF(C88="",F87,IF(E88="",F87,E88/MAX($E$9:E88)-1))) -> -0.0119946016
B89: 2018-04-23 | C89: -7.668842832 | D89: 111.5545462 | E89: 107.6506719 | F89: =IF(B89="","",IF(C89="",F88,IF(E89="",F88,E89/MAX($E$9:E89)-1))) -> -0.01437661075
B90: 2018-04-24 | C90: -7.668842832 | D90: 112.2347875 | E90: 108.307108 | F90: =IF(B90="","",IF(C90="",F89,IF(E90="",F89,E90/MAX($E$9:E90)-1))) -> -0.008366441449
B91: 2018-04-25 | C91: -7.668842832 | D91: 110.9477998 | E91: 107.0651586 | F91: =IF(B91="","",IF(C91="",F90,IF(E91="",F90,E91/MAX($E$9:E91)-1))) -> -0.01973742777
B92: 2018-04-26 | C92: -10.08238286 | D92: 113.4744138 | E92: 109.5033533 | F92: =IF(B92="","",IF(C92="",F91,IF(E92="",F91,E92/MAX($E$9:E92)-1))) -> 0
B93: 2018-04-27 | C93: -10.08238286 | D93: 113.106158 | E93: 109.1479847 | F93: =IF(B93="","",IF(C93="",F92,IF(E93="",F92,E93/MAX($E$9:E93)-1))) -> -0.003245275595
B94: 2018-04-30 | C94: -10.08238286 | D94: 113.0177647 | E94: 109.0626847 | F94: =IF(B94="","",IF(C94="",F93,IF(E94="",F93,E94/MAX($E$9:E94)-1))) -> -0.004024247083
B95: 2018-05-01 | F95: =IF(B95="","",IF(C95="",F94,IF(E95="",F94,E95/MAX($E$9:E95)-1))) -> -0.004024247083
B96: 2018-05-02 | C96: -10.08238286 | D96: 112.5717493 | E96: 108.6322778 | F96: =IF(B96="","",IF(C96="",F95,IF(E96="",F95,E96/MAX($E$9:E96)-1))) -> -0.007954783976
B97: 2018-05-03 | C97: -10.08238286 | D97: 111.3928858 | E97: 107.4946688 | F97: =IF(B97="","",IF(C97="",F96,IF(E97="",F96,E97/MAX($E$9:E97)-1))) -> -0.01834358912
B98: 2018-05-04 | C98: -10.08238286 | D98: 111.4102151 | E98: 107.5113917 | F98: =IF(B98="","",IF(C98="",F97,IF(E98="",F97,E98/MAX($E$9:E98)-1))) -> -0.01819087325
B99: 2018-05-07 | C99: -10.08238286 | D99: 110.1759886 | E99: 106.3203571 | F99: =IF(B99="","",IF(C99="",F98,IF(E99="",F98,E99/MAX($E$9:E99)-1))) -> -0.02906756775
B100: 2018-05-08 | C100: -10.08238286 | D100: 109.96655 | E100: 106.118248 | F100: =IF(B100="","",IF(C100="",F99,IF(E100="",F99,E100/MAX($E$9:E100)-1))) -> -0.03091325716
B101: 2018-05-09 | C101: -10.08238286 | D101: 111.5279783 | E101: 107.6250337 | F101: =IF(B101="","",IF(C101="",F100,IF(E101="",F100,E101/MAX($E$9:E101)-1))) -> -0.01715307827
B102: 2018-05-10 | C102: -10.08238286 | D102: 114.6404781 | E102: 110.628611 | F102: =IF(B102="","",IF(C102="",F101,IF(E102="",F101,E102/MAX($E$9:E102)-1))) -> 0
B103: 2018-05-11 | C103: -10.08238286 | D103: 115.4633546 | E103: 111.4226907 | F103: =IF(B103="","",IF(C103="",F102,IF(E103="",F102,E103/MAX($E$9:E103)-1))) -> 0
B104: 2018-05-14 | C104: -10.08238286 | D104: 116.8825868 | E104: 112.7922566 | F104: =IF(B104="","",IF(C104="",F103,IF(E104="",F103,E104/MAX($E$9:E104)-1))) -> 0
B105: 2018-05-15 | C105: -10.08238286 | D105: 118.4469206 | E105: 114.3018462 | F105: =IF(B105="","",IF(C105="",F104,IF(E105="",F104,E105/MAX($E$9:E105)-1))) -> 0
B106: 2018-05-16 | C106: -10.08238286 | D106: 121.3702966 | E106: 117.122918 | F106: =IF(B106="","",IF(C106="",F105,IF(E106="",F105,E106/MAX($E$9:E106)-1))) -> 0
B107: 2018-05-17 | C107: -10.08238286 | D107: 119.1031683 | E107: 114.9351283 | F107: =IF(B107="","",IF(C107="",F106,IF(E107="",F106,E107/MAX($E$9:E107)-1))) -> -0.01867943275
B108: 2018-05-18 | C108: -10.08238286 | D108: 117.3760572 | E108: 113.2684579 | F108: =IF(B108="","",IF(C108="",F107,IF(E108="",F107,E108/MAX($E$9:E108)-1))) -> -0.03290952928
B109: 2018-05-21 | C109: -10.08238286 | D109: 114.7491517 | E109: 110.7334815 | F109: =IF(B109="","",IF(C109="",F108,IF(E109="",F108,E109/MAX($E$9:E109)-1))) -> -0.054553256
B110: 2018-05-22 | C110: -10.08238286 | D110: 114.9978244 | E110: 110.9734519 | F110: =IF(B110="","",IF(C110="",F109,IF(E110="",F109,E110/MAX($E$9:E110)-1))) -> -0.05250437945
B111: 2018-05-23 | C111: -10.08238286 | D111: 113.8750599 | E111: 109.8899787 | F111: =IF(B111="","",IF(C111="",F110,IF(E111="",F110,E111/MAX($E$9:E111)-1))) -> -0.06175511508
B112: 2018-05-24 | C112: -10.08238286 | D112: 116.4690593 | E112: 112.3932006 | F112: =IF(B112="","",IF(C112="",F111,IF(E112="",F111,E112/MAX($E$9:E112)-1))) -> -0.04038251002
B113: 2018-05-25 | C113: -10.08238286 | D113: 114.9495057 | E113: 110.9268241 | F113: =IF(B113="","",IF(C113="",F112,IF(E113="",F112,E113/MAX($E$9:E113)-1))) -> -0.05290248933
B114: 2018-05-28 | C114: -10.08238286 | D114: 111.2016244 | E114: 107.3101006 | F114: =IF(B114="","",IF(C114="",F113,IF(E114="",F113,E114/MAX($E$9:E114)-1))) -> -0.08378221408
B115: 2018-05-29 | C115: -10.08238286 | D115: 110.3845685 | E115: 106.5216378 | F115: =IF(B115="","",IF(C115="",F114,IF(E115="",F114,E115/MAX($E$9:E115)-1))) -> -0.09051414002
B116: 2018-05-30 | C116: -10.08238286 | D116: 110.7587896 | E116: 106.8827629 | F116: =IF(B116="","",IF(C116="",F115,IF(E116="",F115,E116/MAX($E$9:E116)-1))) -> -0.08743083987
B117: 2018-05-31 | F117: =IF(B117="","",IF(C117="",F116,IF(E117="",F116,E117/MAX($E$9:E117)-1))) -> -0.08743083987
B118: 2018-06-01 | C118: -10.08238286 | D118: 113.3128085 | E118: 109.3474034 | F118: =IF(B118="","",IF(C118="",F117,IF(E118="",F117,E118/MAX($E$9:E118)-1))) -> -0.06638764413
B119: 2018-06-04 | C119: -10.08238286 | D119: 113.3828521 | E119: 109.4149958 | F119: =IF(B119="","",IF(C119="",F118,IF(E119="",F118,E119/MAX($E$9:E119)-1))) -> -0.06581053726
B120: 2018-06-05 | C120: -10.08238286 | D120: 112.8231755 | E120: 108.8749052 | F120: =IF(B120="","",IF(C120="",F119,IF(E120="",F119,E120/MAX($E$9:E120)-1))) -> -0.07042185185
B121: 2018-06-06 | C121: -10.08238286 | D121: 115.6113769 | E121: 111.5655329 | F121: =IF(B121="","",IF(C121="",F120,IF(E121="",F120,E121/MAX($E$9:E121)-1))) -> -0.04744916848
B122: 2018-06-07 | C122: -10.08238286 | D122: 111.8425959 | E122: 107.9286412 | F122: =IF(B122="","",IF(C122="",F121,IF(E122="",F121,E122/MAX($E$9:E122)-1))) -> -0.07850109079
B123: 2018-06-08 | C123: -10.08238286 | D123: 108.3600791 | E123: 104.5679958 | F123: =IF(B123="","",IF(C123="",F122,IF(E123="",F122,E123/MAX($E$9:E123)-1))) -> -0.1071944113
B124: 2018-06-11 | C124: -10.08238286 | D124: 106.5438538 | E124: 102.8153297 | F124: =IF(B124="","",IF(C124="",F123,IF(E124="",F123,E124/MAX($E$9:E124)-1))) -> -0.1221587421
B125: 2018-06-12 | C125: -10.08238286 | D125: 107.1099977 | E125: 103.3616613 | F125: =IF(B125="","",IF(C125="",F124,IF(E125="",F124,E125/MAX($E$9:E125)-1))) -> -0.1174941418
B126: 2018-06-13 | C126: -10.08238286 | D126: 106.0660908 | E126: 102.3542861 | F126: =IF(B126="","",IF(C126="",F125,IF(E126="",F125,E126/MAX($E$9:E126)-1))) -> -0.1260951501
B127: 2018-06-14 | C127: -10.08238286 | D127: 105.3357458 | E127: 101.6494997 | F127: =IF(B127="","",IF(C127="",F126,IF(E127="",F126,E127/MAX($E$9:E127)-1))) -> -0.1321126436
B128: 2018-06-15 | C128: -10.08238286 | D128: 102.9159432 | E128: 99.31437855 | F128: =IF(B128="","",IF(C128="",F127,IF(E128="",F127,E128/MAX($E$9:E128)-1))) -> -0.1520499981
B129: 2018-06-18 | C129: -10.08238286 | D129: 102.2402095 | E129: 98.66229232 | F129: =IF(B129="","",IF(C129="",F128,IF(E129="",F128,E129/MAX($E$9:E129)-1))) -> -0.1576175355
B130: 2018-06-19 | C130: -10.08238286 | D130: 101.7008822 | E130: 98.14183886 | F130: =IF(B130="","",IF(C130="",F129,IF(E130="",F129,E130/MAX($E$9:E130)-1))) -> -0.1620611872
B131: 2018-06-20 | C131: -10.08238286 | D131: 102.8190034 | E131: 99.2208312 | F131: =IF(B131="","",IF(C131="",F130,IF(E131="",F130,E131/MAX($E$9:E131)-1))) -> -0.1528487089
B132: 2018-06-21 | C132: -10.08238286 | D132: 100.5736952 | E132: 97.05409797 | F132: =IF(B132="","",IF(C132="",F131,IF(E132="",F131,E132/MAX($E$9:E132)-1))) -> -0.171348361
B133: 2018-06-22 | C133: -10.08238286 | D133: 101.6579022 | E133: 98.10036293 | F133: =IF(B133="","",IF(C133="",F132,IF(E133="",F132,E133/MAX($E$9:E133)-1))) -> -0.1624153104
B134: 2018-06-25 | C134: -10.08238286 | D134: 101.7200723 | E134: 98.16035743 | F134: =IF(B134="","",IF(C134="",F133,IF(E134="",F133,E134/MAX($E$9:E134)-1))) -> -0.161903075
B135: 2018-06-26 | C135: -10.08238286 | D135: 103.4094071 | E135: 99.79057359 | F135: =IF(B135="","",IF(C135="",F134,IF(E135="",F134,E135/MAX($E$9:E135)-1))) -> -0.1479842264
B136: 2018-06-27 | C136: -10.08238286 | D136: 102.4787339 | E136: 98.89246945 | F136: =IF(B136="","",IF(C136="",F135,IF(E136="",F135,E136/MAX($E$9:E136)-1))) -> -0.1556522743
B137: 2018-06-28 | C137: -10.08238286 | D137: 104.3229268 | E137: 100.6721244 | F137: =IF(B137="","",IF(C137="",F136,IF(E137="",F136,E137/MAX($E$9:E137)-1))) -> -0.1404575111
B138: 2018-06-29 | C138: -10.08238286 | D138: 105.7116931 | E138: 102.0122906 | F138: =IF(B138="","",IF(C138="",F137,IF(E138="",F137,E138/MAX($E$9:E138)-1))) -> -0.1290151207
B139: 2018-07-02 | C139: -10.08238286 | D139: 103.3539768 | E139: 99.73708312 | F139: =IF(B139="","",IF(C139="",F138,IF(E139="",F138,E139/MAX($E$9:E139)-1))) -> -0.1484409301
B140: 2018-07-03 | C140: -10.08238286 | D140: 103.2351903 | E140: 99.62245357 | F140: =IF(B140="","",IF(C140="",F139,IF(E140="",F139,E140/MAX($E$9:E140)-1))) -> -0.1494196417
B141: 2018-07-04 | C141: -10.08238286 | D141: 103.1921591 | E141: 99.5809282 | F141: =IF(B141="","",IF(C141="",F140,IF(E141="",F140,E141/MAX($E$9:E141)-1))) -> -0.1497741869
B142: 2018-07-05 | C142: -10.08238286 | D142: 105.3968035 | E142: 101.7084206 | F142: =IF(B142="","",IF(C142="",F141,IF(E142="",F141,E142/MAX($E$9:E142)-1))) -> -0.1316095741
B143: 2018-07-06 | C143: -10.08238286 | D143: 107.0752121 | E143: 103.3280929 | F143: =IF(B143="","",IF(C143="",F142,IF(E143="",F142,E143/MAX($E$9:E143)-1))) -> -0.1177807495
B144: 2018-07-09 | F144: =IF(B144="","",IF(C144="",F143,IF(E144="",F143,E144/MAX($E$9:E144)-1))) -> -0.1177807495
B145: 2018-07-10 | C145: -10.08238286 | D145: 107.3009329 | E145: 103.5459147 | F145: =IF(B145="","",IF(C145="",F144,IF(E145="",F144,E145/MAX($E$9:E145)-1))) -> -0.1159209793
B146: 2018-07-11 | C146: -10.08238286 | D146: 106.2293191 | E146: 102.5118021 | F146: =IF(B146="","",IF(C146="",F145,IF(E146="",F145,E146/MAX($E$9:E146)-1))) -> -0.124750272
B147: 2018-07-12 | C147: -10.08238286 | D147: 108.7468411 | E147: 104.9412229 | F147: =IF(B147="","",IF(C147="",F146,IF(E147="",F146,E147/MAX($E$9:E147)-1))) -> -0.1040077833
B148: 2018-07-13 | C148: -10.08238286 | D148: 108.9849005 | E148: 105.1709515 | F148: =IF(B148="","",IF(C148="",F147,IF(E148="",F147,E148/MAX($E$9:E148)-1))) -> -0.1020463521
B149: 2018-07-16 | C149: -10.08238286 | D149: 109.2610272 | E149: 105.437415 | F149: =IF(B149="","",IF(C149="",F148,IF(E149="",F148,E149/MAX($E$9:E149)-1))) -> -0.0997712761
B150: 2018-07-17 | C150: -10.08238286 | D150: 111.9986452 | E150: 108.0792296 | F150: =IF(B150="","",IF(C150="",F149,IF(E150="",F149,E150/MAX($E$9:E150)-1))) -> -0.07721536147
B151: 2018-07-18 | C151: -10.08238286 | D151: 113.4105 | E151: 109.4416762 | F151: =IF(B151="","",IF(C151="",F150,IF(E151="",F150,E151/MAX($E$9:E151)-1))) -> -0.06558273957
B152: 2018-07-19 | C152: -10.08238286 | D152: 111.3193167 | E152: 107.4236742 | F152: =IF(B152="","",IF(C152="",F151,IF(E152="",F151,E152/MAX($E$9:E152)-1))) -> -0.08281251829
B153: 2018-07-20 | C153: -10.08238286 | D153: 110.6043674 | E153: 106.7337448 | F153: =IF(B153="","",IF(C153="",F152,IF(E153="",F152,E153/MAX($E$9:E153)-1))) -> -0.0887031626
B154: 2018-07-23 | C154: -10.08238286 | D154: 112.3979617 | E154: 108.4645718 | F154: =IF(B154="","",IF(C154="",F153,IF(E154="",F153,E154/MAX($E$9:E154)-1))) -> -0.0739252941
B155: 2018-07-24 | C155: -10.08238286 | D155: 115.0649595 | E155: 111.0382376 | F155: =IF(B155="","",IF(C155="",F154,IF(E155="",F154,E155/MAX($E$9:E155)-1))) -> -0.0519512369
B156: 2018-07-25 | C156: -10.08238286 | D156: 115.5031792 | E156: 111.4611217 | F156: =IF(B156="","",IF(C156="",F155,IF(E156="",F155,E156/MAX($E$9:E156)-1))) -> -0.04834063603
B157: 2018-07-26 | C157: -10.08238286 | D157: 116.1107424 | E157: 112.0474231 | F157: =IF(B157="","",IF(C157="",F156,IF(E157="",F156,E157/MAX($E$9:E157)-1))) -> -0.04333477193
B158: 2018-07-27 | C158: -10.08238286 | D158: 116.4494596 | E158: 112.3742867 | F158: =IF(B158="","",IF(C158="",F157,IF(E158="",F157,E158/MAX($E$9:E158)-1))) -> -0.04054399737
B159: 2018-07-30 | C159: -10.08238286 | D159: 117.8643399 | E159: 113.7396531 | F159: =IF(B159="","",IF(C159="",F158,IF(E159="",F158,E159/MAX($E$9:E159)-1))) -> -0.02888644697
B160: 2018-07-31 | C160: -10.08238286 | D160: 118.0103448 | E160: 113.8805484 | F160: =IF(B160="","",IF(C160="",F159,IF(E160="",F159,E160/MAX($E$9:E160)-1))) -> -0.02768347694
B161: 2018-08-01 | C161: -10.08238286 | D161: 115.3214074 | E161: 111.285711 | F161: =IF(B161="","",IF(C161="",F160,IF(E161="",F160,E161/MAX($E$9:E161)-1))) -> -0.04983829928
B162: 2018-08-02 | C162: -10.08238286 | D162: 114.5198593 | E162: 110.5122132 | F162: =IF(B162="","",IF(C162="",F161,IF(E162="",F161,E162/MAX($E$9:E162)-1))) -> -0.05644245321
B163: 2018-08-03 | C163: -10.08238286 | D163: 117.1304504 | E163: 113.0314462 | F163: =IF(B163="","",IF(C163="",F162,IF(E163="",F162,E163/MAX($E$9:E163)-1))) -> -0.03493314459
B164: 2018-08-06 | C164: -10.08238286 | D164: 117.4571446 | E164: 113.3467076 | F164: =IF(B164="","",IF(C164="",F163,IF(E164="",F163,E164/MAX($E$9:E164)-1))) -> -0.03224142998
B165: 2018-08-07 | C165: -10.08238286 | D165: 117.8665855 | E165: 113.7418201 | F165: =IF(B165="","",IF(C165="",F164,IF(E165="",F164,E165/MAX($E$9:E165)-1))) -> -0.02886794504
B166: 2018-08-08 | C166: -10.08238286 | D166: 116.774233 | E166: 112.6876946 | F166: =IF(B166="","",IF(C166="",F165,IF(E166="",F165,E166/MAX($E$9:E166)-1))) -> -0.03786810853
B167: 2018-08-09 | C167: -10.08238286 | D167: 115.4004628 | E167: 111.3619998 | F167: =IF(B167="","",IF(C167="",F166,IF(E167="",F166,E167/MAX($E$9:E167)-1))) -> -0.04918694247
B168: 2018-08-10 | C168: -10.08238286 | D168: 113.1837256 | E168: 109.2228378 | F168: =IF(B168="","",IF(C168="",F167,IF(E168="",F167,E168/MAX($E$9:E168)-1))) -> -0.0674511902
B169: 2018-08-13 | C169: -10.08238286 | D169: 114.8113395 | E169: 110.793493 | F169: =IF(B169="","",IF(C169="",F168,IF(E169="",F168,E169/MAX($E$9:E169)-1))) -> -0.05404087558
B170: 2018-08-14 | C170: -10.08238286 | D170: 115.8488675 | E170: 111.7947125 | F170: =IF(B170="","",IF(C170="",F169,IF(E170="",F169,E170/MAX($E$9:E170)-1))) -> -0.04549242437
B171: 2018-08-15 | C171: -10.08238286 | D171: 112.6074537 | E171: 108.6667326 | F171: =IF(B171="","",IF(C171="",F170,IF(E171="",F170,E171/MAX($E$9:E171)-1))) -> -0.07219923781
B172: 2018-08-16 | C172: -10.08238286 | D172: 111.896491 | E172: 107.9806503 | F172: =IF(B172="","",IF(C172="",F171,IF(E172="",F171,E172/MAX($E$9:E172)-1))) -> -0.07805703525
B173: 2018-08-17 | C173: -10.08238286 | D173: 112.6008401 | E173: 108.6603505 | F173: =IF(B173="","",IF(C173="",F172,IF(E173="",F172,E173/MAX($E$9:E173)-1))) -> -0.07225372876
B174: 2018-08-20 | C174: -10.08238286 | D174: 113.9485643 | E174: 109.9609108 | F174: =IF(B174="","",IF(C174="",F173,IF(E174="",F173,E174/MAX($E$9:E174)-1))) -> -0.06114949398
B175: 2018-08-21 | C175: -10.08238286 | D175: 114.1096437 | E175: 110.1163532 | F175: =IF(B175="","",IF(C175="",F174,IF(E175="",F174,E175/MAX($E$9:E175)-1))) -> -0.05982232119
B176: 2018-08-22 | C176: -10.08238286 | D176: 116.9059679 | E176: 112.8148194 | F176: =IF(B176="","",IF(C176="",F175,IF(E176="",F175,E176/MAX($E$9:E176)-1))) -> -0.03678271224
B177: 2018-08-23 | C177: -10.08238286 | D177: 116.8812489 | E177: 112.7909655 | F177: =IF(B177="","",IF(C177="",F176,IF(E177="",F176,E177/MAX($E$9:E177)-1))) -> -0.03698637827
B178: 2018-08-24 | C178: -10.08238286 | D178: 117.4389285 | E178: 113.329129 | F178: =IF(B178="","",IF(C178="",F177,IF(E178="",F177,E178/MAX($E$9:E178)-1))) -> -0.03239151726
B179: 2018-08-27 | C179: -10.08238286 | D179: 119.9487013 | E179: 115.7510718 | F179: =IF(B179="","",IF(C179="",F178,IF(E179="",F178,E179/MAX($E$9:E179)-1))) -> -0.0117128763
B180: 2018-08-28 | C180: -10.08238286 | D180: 120.5921552 | E180: 116.3720079 | F180: =IF(B180="","",IF(C180="",F179,IF(E180="",F179,E180/MAX($E$9:E180)-1))) -> -0.006411299452
B181: 2018-08-29 | C181: -17.1348361 | D181: 121.531651 | E181: 117.2786259 | F181: =IF(B181="","",IF(C181="",F180,IF(E181="",F180,E181/MAX($E$9:E181)-1))) -> 0
B182: 2018-08-30 | C182: -17.1348361 | D182: 120.9789657 | E182: 116.7452818 | F182: =IF(B182="","",IF(C182="",F181,IF(E182="",F181,E182/MAX($E$9:E182)-1))) -> -0.004547666261
B183: 2018-08-31 | C183: -17.1348361 | D183: 120.6540217 | E183: 116.4317094 | F183: =IF(B183="","",IF(C183="",F182,IF(E183="",F182,E183/MAX($E$9:E183)-1))) -> -0.007221405296
B184: 2018-09-03 | C184: -17.1348361 | D184: 120.7371989 | E184: 116.5119757 | F184: =IF(B184="","",IF(C184="",F183,IF(E184="",F183,E184/MAX($E$9:E184)-1))) -> -0.006536998062
B185: 2018-09-04 | C185: -17.1348361 | D185: 117.003083 | E185: 112.908536 | F185: =IF(B185="","",IF(C185="",F184,IF(E185="",F184,E185/MAX($E$9:E185)-1))) -> -0.03726245833
B186: 2018-09-05 | C186: -17.1348361 | D186: 117.7432964 | E186: 113.6228455 | F186: =IF(B186="","",IF(C186="",F185,IF(E186="",F185,E186/MAX($E$9:E186)-1))) -> -0.03117175302
B187: 2018-09-06 | C187: -17.1348361 | D187: 121.2768357 | E187: 117.0327278 | F187: =IF(B187="","",IF(C187="",F186,IF(E187="",F186,E187/MAX($E$9:E187)-1))) -> -0.002096699703
B188: 2018-09-07 | F188: =IF(B188="","",IF(C188="",F187,IF(E188="",F187,E188/MAX($E$9:E188)-1))) -> -0.002096699703
B189: 2018-09-10 | C189: -17.1348361 | D189: 120.9103382 | E189: 116.679056 | F189: =IF(B189="","",IF(C189="",F188,IF(E189="",F188,E189/MAX($E$9:E189)-1))) -> -0.005112354068
B190: 2018-09-11 | C190: -17.1348361 | D190: 119.5449991 | E190: 115.3614972 | F190: =IF(B190="","",IF(C190="",F189,IF(E190="",F189,E190/MAX($E$9:E190)-1))) -> -0.01634678669
B191: 2018-09-12 | C191: -17.1348361 | D191: 120.4227252 | E191: 116.2085071 | F191: =IF(B191="","",IF(C191="",F190,IF(E191="",F190,E191/MAX($E$9:E191)-1))) -> -0.009124584911
B192: 2018-09-13 | C192: -17.1348361 | D192: 120.3830391 | E192: 116.1702098 | F192: =IF(B192="","",IF(C192="",F191,IF(E192="",F191,E192/MAX($E$9:E192)-1))) -> -0.009451134525
B193: 2018-09-14 | C193: -17.1348361 | D193: 122.993016 | E193: 118.68885 | F193: =IF(B193="","",IF(C193="",F192,IF(E193="",F192,E193/MAX($E$9:E193)-1))) -> 0
B194: 2018-09-17 | C194: -17.1348361 | D194: 122.5760307 | E194: 118.2864572 | F194: =IF(B194="","",IF(C194="",F193,IF(E194="",F193,E194/MAX($E$9:E194)-1))) -> -0.003390316613
B195: 2018-09-18 | C195: -17.1348361 | D195: 125.4254468 | E195: 121.0361575 | F195: =IF(B195="","",IF(C195="",F194,IF(E195="",F194,E195/MAX($E$9:E195)-1))) -> 0
B196: 2018-09-19 | C196: -17.1348361 | D196: 126.6432532 | E196: 122.2113465 | F196: =IF(B196="","",IF(C196="",F195,IF(E196="",F195,E196/MAX($E$9:E196)-1))) -> 0
B197: 2018-09-20 | C197: -17.1348361 | D197: 127.4447878 | E197: 122.9848312 | F197: =IF(B197="","",IF(C197="",F196,IF(E197="",F196,E197/MAX($E$9:E197)-1))) -> 0
B198: 2018-09-21 | C198: -17.1348361 | D198: 130.6383138 | E198: 126.066599 | F198: =IF(B198="","",IF(C198="",F197,IF(E198="",F197,E198/MAX($E$9:E198)-1))) -> 0
B199: 2018-09-24 | C199: -17.1348361 | D199: 130.3265484 | E199: 125.765744 | F199: =IF(B199="","",IF(C199="",F198,IF(E199="",F198,E199/MAX($E$9:E199)-1))) -> -0.002386476849
B200: 2018-09-25 | C200: -17.1348361 | D200: 132.7522212 | E200: 128.1065299 | F200: =IF(B200="","",IF(C200="",F199,IF(E200="",F199,E200/MAX($E$9:E200)-1))) -> 0
B201: 2018-09-26 | C201: -17.1348361 | D201: 130.784382 | E201: 126.2075556 | F201: =IF(B201="","",IF(C201="",F200,IF(E201="",F200,E201/MAX($E$9:E201)-1))) -> -0.0148233998
... 10103 more rows
